Workbook

Sheet Principal
B1: Indicador baseado na: | C1: Volume de corte máximo (m3/ha): | D1: 30 | E1: Área da UPA (ha): | G1: 620 | I1: % mín: | J1: 0.005
B2: Carga da UPA | C2: Indicador A7 (Spp exploradas), k: | D2: 40 | E2: Carga mínima (m3): | G2: 30
J3: 97 | K3: Espécies
C4: Receita (R$/ha): | D4: =G203 -> 0 | E4: Espécies e volume explorados: | G4: =J201 -> 0 | H4: =I201 -> 0 | I4: m3 | J4: =J3*2+1 -> 195 | K4: Variáveis
A5: # | B5: Espécie | D5: % Explorado da Sp | E5: % do Total | F5: Volume (m3) | G5: Valor | H5: Define V | I5: Impõe V<V* | J5: Impõe S>S* | K5: 1 | L5: 2 | M5: 3 | N5: 4 | O5: 5 | P5: 6 | Q5: 7 | R5: 8 | S5: 9 | T5: 10 | U5: 11 | V5: 12 | W5: 13 | X5: 14 | Y5: 15 | Z5: 16 | AA5: 17 | AB5: 18 | AC5: 19 | AD5: 20 | AE5: 21 | AF5: 22 | AG5: 23 | AH5: 24 | AI5: 25 | AJ5: 26 | AK5: 27 | AL5: 28 | AM5: 29 | AN5: 30 | AO5: 31 | AP5: 32 | AQ5: 33 | AR5: 34 | AS5: 35 | AT5: 36 | AU5: 37 | AV5: 38 | AW5: 39 | AX5: 40 | AY5: 42 | AZ5: 43 | BA5: 44 | BB5: 45 | BC5: 46 | BD5: 47 | BE5: 48 | BF5: 49 | BG5: 50 | BH5: 51 | BI5: 52 | BJ5: 53 | BK5: 54 | BL5: 55 | BM5: 56 | BN5: 57 | BO5: 59 | BP5: 60 | BQ5: 61 | BR5: 62 | BS5: 63 | BT5: 64 | BU5: 65 | BV5: 66 | BW5: 67 | BX5: 68 | BY5: 69 | BZ5: 70 | CA5: 71 | CB5: 72 | CC5: 73 | CD5: 74 | CE5: 75 | CF5: 76 | CG5: 77 | CH5: 78 | CI5: 79 | CJ5: 81 | CK5: 82 | CL5: 83 | CM5: 84 | CN5: 86 | CO5: 88 | CP5: 89 | CQ5: 90 | CR5: 91 | CS5: 92 | CT5: 93 | CU5: 94 | CV5: 96 | CW5: 97 | CX5: 98 | CY5: 100 | CZ5: 101 | DA5: 102 | DB5: 103 | DC5: 104 | DD5: 1 | DE5: 2 | DF5: 3 | DG5: 4 | DH5: 5 | DI5: 6 | DJ5: 7 | DK5: 8 | DL5: 9 | DM5: 10 | DN5: 11 | DO5: 12 | DP5: 13 | DQ5: 14 | DR5: 15 | DS5: 16 | DT5: 17 | DU5: 18 | DV5: 19 | DW5: 20 | DX5: 21 | DY5: 22 | DZ5: 23 | EA5: 24 | EB5: 25 | EC5: 26 | ED5: 27 | EE5: 28 | EF5: 29 | EG5: 30 | EH5: 31 | EI5: 32 | EJ5: 33 | EK5: 34 | EL5: 35 | EM5: 36 | EN5: 37 | EO5: 38 | EP5: 39 | EQ5: 40 | ER5: 42 | ES5: 43 | ET5: 44 | EU5: 45 | EV5: 46 | EW5: 47 | EX5: 48 | EY5: 49 | EZ5: 50 | FA5: 51 | FB5: 52 | FC5: 53 | FD5: 54 | FE5: 55 | FF5: 56 | FG5: 57 | FH5: 59 | FI5: 60 | FJ5: 61 | FK5: 62 | FL5: 63 | FM5: 64 | FN5: 65 | FO5: 66 | FP5: 67 | FQ5: 68 | FR5: 69 | FS5: 70 | FT5: 71 | FU5: 72 | FV5: 73 | FW5: 74 | FX5: 75 | FY5: 76 | FZ5: 77 | GA5: 78 | GB5: 79 | GC5: 81 | GD5: 82 | GE5: 83 | GF5: 84 | GG5: 86 | GH5: 88 | GI5: 89 | GJ5: 90 | GK5: 91 | GL5: 92 | GM5: 93 | GN5: 94 | GO5: 96 | GP5: 97 | GQ5: 98 | GR5: 100 | GS5: 101 | GT5: 102 | GU5: 103 | GV5: 104
A6: 1 | B6: Andiroba | C6: Carapa guianensis Aubl. | D6: =IF(ROUND(F103,0)=1,F6/-K103,"--") -> -- | E6: =IF(ROUND(F103,0)=1,F6/$F$200,"--") -> -- | G6: 120.12 | H6: 1 | K6: 1 | DD6: =$C$204 -> -620
A7: 2 | B7: Angelim-Vermelho | C7: Dinizia excelsa | D7: =IF(ROUND(F104,0)=1,F7/-L104,"--") -> -- | E7: -- | G7: 120 | H7: 1 | L7: 1 | DE7: =$C$204 -> -620
A8: 3 | B8: Cumaru | C8: Dipteryx odorata | D8: =IF(ROUND(F105,0)=1,F8/-M105,"--") -> -- | E8: -- | G8: 120 | H8: 1 | M8: 1 | DF8: =$C$204 -> -620
A9: 4 | B9: Jatobá | C9: Hymenaea courbaril L. var.courbaril | D9: =IF(ROUND(F106,0)=1,F9/-N106,"--") -> -- | E9: -- | G9: 120 | H9: 1 | N9: 1 | DG9: =$C$204 -> -620
A10: 5 | B10: Maparajuba | C10: Manilkara amazonica (Huber) Standley | D10: =IF(ROUND(F107,0)=1,F10/-O107,"--") -> -- | E10: -- | G10: 120 | H10: 1 | O10: 1 | DH10: =$C$204 -> -620
A11: 6 | B11: Massaranduba | C11: Manilkara bidentata subsp. surinamensis (Miq.) T.D. Penn. | D11: =IF(ROUND(F108,0)=1,F11/-P108,"--") -> -- | E11: -- | G11: 120 | H11: 1 | P11: 1 | DI11: =$C$204 -> -620
A12: 7 | B12: Muiracatiara | C12: Astronium lecointe Ducke | D12: =IF(ROUND(F109,0)=1,F12/-Q109,"--") -> -- | E12: -- | G12: 120 | H12: 1 | Q12: 1 | DJ12: =$C$204 -> -620
A13: 8 | B13: Angelim | C13: Hymenolobium sp. | D13: =IF(ROUND(F110,0)=1,F13/-R110,"--") -> -- | E13: -- | G13: 90 | H13: 1 | R13: 1 | DK13: =$C$204 -> -620
A14: 9 | B14: Angelim-pedra | C14: Hymenolobium elatum Ducke | D14: =IF(ROUND(F111,0)=1,F14/-S111,"--") -> -- | E14: -- | G14: 90 | H14: 1 | S14: 1 | DL14: =$C$204 -> -620
A15: 10 | B15: Cumaru-do-brejo | C15: Dipteryx puncatata (Blake) Amshoff | D15: =IF(ROUND(F112,0)=1,F15/-T112,"--") -> -- | E15: -- | G15: 90 | H15: 1 | T15: 1 | DM15: =$C$204 -> -620
A16: 11 | B16: Cumarurana | C16: Dipteryx magnifica (Ducke) Ducke | D16: =IF(ROUND(F113,0)=1,F16/-U113,"--") -> -- | E16: -- | G16: 90 | H16: 1 | U16: 1 | DN16: =$C$204 -> -620
A17: 12 | B17: Cupiúba | C17: Goupia glabra Aubl. | D17: =IF(ROUND(F114,0)=1,F17/-V114,"--") -> -- | E17: -- | G17: 90 | H17: 1 | V17: 1 | DO17: =$C$204 -> -620
A18: 13 | B18: Itaúba | C18: Mezilaurus synadra (Mez) Kosterm. | D18: =IF(ROUND(F115,0)=1,F18/-W115,"--") -> -- | E18: -- | G18: 90 | H18: 1 | W18: 1 | DP18: =$C$204 -> -620
A19: 14 | B19: Jutaí | C19: Hymenaea reticulata Ducke | D19: =IF(ROUND(F116,0)=1,F19/-X116,"--") -> -- | E19: -- | G19: 90 | H19: 1 | X19: 1 | DQ19: =$C$204 -> -620
A20: 15 | B20: Jutaí-pororoca | C20: Dialium guianense (Aubl.) Sandwith | D20: =IF(ROUND(F117,0)=1,F20/-Y117,"--") -> -- | E20: -- | G20: 90 | H20: 1 | Y20: 1 | DR20: =$C$204 -> -620
A21: 16 | B21: Louro | C21: Ocotea sp. | D21: =IF(ROUND(F118,0)=1,F21/-Z118,"--") -> -- | E21: -- | G21: 90 | H21: 1 | Z21: 1 | DS21: =$C$204 -> -620
A22: 17 | B22: Louro-amarelo | C22: Ocotea cymbarum H.B.K | D22: =IF(ROUND(F119,0)=1,F22/-AA119,"--") -> -- | E22: -- | G22: 90 | H22: 1 | AA22: 1 | DT22: =$C$204 -> -620
A23: 18 | B23: Louro-aritú | C23: Licaria aritu Benth. | D23: =IF(ROUND(F120,0)=1,F23/-AB120,"--") -> -- | E23: -- | G23: 90 | H23: 1 | AB23: 1 | DU23: =$C$204 -> -620
A24: 19 | B24: Louro-canela | C24: Licaria cannella ( Meissn.) Kosterm. subsp. cannella | D24: =IF(ROUND(F121,0)=1,F24/-AC121,"--") -> -- | E24: -- | G24: 90 | H24: 1 | AC24: 1 | DV24: =$C$204 -> -620
A25: 20 | B25: Louro-fofo | C25: Ocotea canaliculata (Rich.) Mez | D25: =IF(ROUND(F122,0)=1,F25/-AD122,"--") -> -- | E25: -- | G25: 90 | H25: 1 | AD25: 1 | DW25: =$C$204 -> -620
A26: 21 | B26: Louro-gamela | C26: Nectandra rubra Mez ck .Allen | D26: =IF(ROUND(F123,0)=1,F26/-AE123,"--") -> -- | E26: -- | G26: 90 | H26: 1 | AE26: 1 | DX26: =$C$204 -> -620
A27: 22 | B27: Louro-porco | C27: Nectandra cuspidata Nees & Mart. | D27: =IF(ROUND(F124,0)=1,F27/-AF124,"--") -> -- | E27: -- | G27: 90 | H27: 1 | AF27: 1 | DY27: =$C$204 -> -620
A28: 23 | B28: Louro-preto | C28: Nectandra purusensis Coe-Teix. | D28: =IF(ROUND(F125,0)=1,F28/-AG125,"--") -> -- | E28: -- | G28: 90 | H28: 1 | AG28: 1 | DZ28: =$C$204 -> -620
A29: 24 | B29: Marupá | C29: Simarouba amara Aubl. | D29: =IF(ROUND(F126,0)=1,F29/-AH126,"--") -> -- | E29: -- | G29: 90 | H29: 1 | AH29: 1 | EA29: =$C$204 -> -620
A30: 25 | B30: Pequiá | C30: Caryocar villosum (Aubl.) Pers. | D30: =IF(ROUND(F127,0)=1,F30/-AI127,"--") -> -- | E30: -- | G30: 90 | H30: 1 | AI30: 1 | EB30: =$C$204 -> -620
A31: 26 | B31: Pequiarana | C31: Caryocar glabrum (Aubl.) Pers. | D31: =IF(ROUND(F128,0)=1,F31/-AJ128,"--") -> -- | E31: -- | G31: 90 | H31: 1 | AJ31: 1 | EC31: =$C$204 -> -620
A32: 27 | B32: Preciosa | C32: Aniba canelilla (Kunth) Mez | D32: =IF(ROUND(F129,0)=1,F32/-AK129,"--") -> -- | E32: -- | G32: 90 | H32: 1 | AK32: 1 | ED32: =$C$204 -> -620
A33: 28 | B33: Quarubarana | C33: Erisma uncinatum Warm. | D33: =IF(ROUND(F130,0)=1,F33/-AL130,"--") -> -- | E33: -- | G33: 90 | H33: 1 | AL33: 1 | EE33: =$C$204 -> -620
A34: 29 | B34: Ripeiro | C34: Couratari sp. | D34: =IF(ROUND(F131,0)=1,F34/-AM131,"--") -> -- | E34: -- | G34: 90 | H34: 1 | AM34: 1 | EF34: =$C$204 -> -620
A35: 30 | B35: Sucupira-amarela | C35: Enterolobium schomburgkii Benth. | D35: =IF(ROUND(F132,0)=1,F35/-AN132,"--") -> -- | E35: -- | G35: 90 | H35: 1 | AN35: 1 | EG35: =$C$204 -> -620
A36: 31 | B36: Sucupira-preta | C36: Diplotropis purpurea (Rich.) Amshoff | D36: =IF(ROUND(F133,0)=1,F36/-AO133,"--") -> -- | E36: -- | G36: 90 | H36: 1 | AO36: 1 | EH36: =$C$204 -> -620
A37: 32 | B37: Tauari-branco | C37: Couratari stellata A.C.Sm. | D37: =IF(ROUND(F134,0)=1,F37/-AP134,"--") -> -- | E37: -- | G37: 90 | H37: 1 | AP37: 1 | EI37: =$C$204 -> -620
A38: 33 | B38: Tauari-vermelho | C38: Cariniana micrantha Ducke | D38: =IF(ROUND(F135,0)=1,F38/-AQ135,"--") -> -- | E38: =IF(ROUND(F135,0)=1,F38/$F$200,"--") -> -- | G38: 90 | H38: 1 | AQ38: 1 | EJ38: =$C$204 -> -620
A39: 34 | B39: Ucuúba | C39: Virola theodora (Spruce ex Benth.) Warb. | D39: =IF(ROUND(F136,0)=1,F39/-AR136,"--") -> -- | E39: -- | G39: 90 | H39: 1 | AR39: 1 | EK39: =$C$204 -> -620
A40: 35 | B40: Ucuúba-branca | C40: Virola parvonis (A.DC.) A.C.Sm. | D40: =IF(ROUND(F137,0)=1,F40/-AS137,"--") -> -- | E40: -- | G40: 90 | H40: 1 | AS40: 1 | EL40: =$C$204 -> -620
A41: 36 | B41: Violeta | C41: Peltogyne catingae Ducke | D41: =IF(ROUND(F138,0)=1,F41/-AT138,"--") -> -- | E41: -- | G41: 90 | H41: 1 | AT41: 1 | EM41: =$C$204 -> -620
A42: 37 | B42: Virola | C42: Virola michelii Heckel | D42: =IF(ROUND(F139,0)=1,F42/-AU139,"--") -> -- | E42: -- | G42: 90 | H42: 1 | AU42: 1 | EN42: =$C$204 -> -620
A43: 38 | B43: Abiurana-ferro | C43: Chrysophyllum prieurii A.DC. | D43: =IF(ROUND(F140,0)=1,F43/-AV140,"--") -> -- | E43: -- | G43: 50 | H43: 1 | AV43: 1 | EO43: =$C$204 -> -620
A44: 39 | B44: Acariquara | C44: Minquartia guianensis Aubl. | D44: =IF(ROUND(F141,0)=1,F44/-AW141,"--") -> -- | E44: -- | G44: 50 | H44: 1 | AW44: 1 | EP44: =$C$204 -> -620
A45: 40 | B45: Amapá | C45: Brosimum sp. | D45: =IF(ROUND(F142,0)=1,F45/-AX142,"--") -> -- | E45: -- | G45: 50 | H45: 1 | AX45: 1 | EQ45: =$C$204 -> -620
A46: 42 | B46: Amapá-doce | C46: Brosimum parinarioides Ducke subsp. parinarioides | D46: =IF(ROUND(F143,0)=1,F46/-AY143,"--") -> -- | E46: -- | G46: 50 | H46: 1 | AY46: 1 | ER46: =$C$204 -> -620
A47: 43 | B47: Angelim-rajado | C47: Zygia racemosa (Ducke) Barneby & Grimes | D47: =IF(ROUND(F144,0)=1,F47/-AZ144,"--") -> -- | E47: -- | G47: 50 | H47: 1 | AZ47: 1 | ES47: =$C$204 -> -620
A48: 44 | B48: Arurá-vermelho | C48: Iryanthera ulei Warb. | D48: =IF(ROUND(F145,0)=1,F48/-BA145,"--") -> -- | E48: -- | G48: 50 | H48: 1 | BA48: 1 | ET48: =$C$204 -> -620
A49: 45 | B49: Bacuri | C49: Platonia insingnis Mart. | D49: =IF(ROUND(F146,0)=1,F49/-BB146,"--") -> -- | E49: -- | G49: 50 | H49: 1 | BB49: 1 | EU49: =$C$204 -> -620
A50: 46 | B50: Balatarana | C50: Chrysophyllum sanguinolentum (Pierre) Baehni subsp. sanguinolentum | D50: =IF(ROUND(F147,0)=1,F50/-BC147,"--") -> -- | E50: -- | G50: 50 | H50: 1 | BC50: 1 | EV50: =$C$204 -> -620
A51: 47 | B51: Breu | C51: Protium sp. | D51: =IF(ROUND(F148,0)=1,F51/-BD148,"--") -> -- | E51: -- | G51: 50 | H51: 1 | BD51: 1 | EW51: =$C$204 -> -620
A52: 48 | B52: Breu-branco | C52: Protium pallidium Cuatrec. | D52: =IF(ROUND(F149,0)=1,F52/-BE149,"--") -> -- | E52: -- | G52: 50 | H52: 1 | BE52: 1 | EX52: =$C$204 -> -620
A53: 49 | B53: Breu-vermelho | C53: Protium decandrum (Aubl.) March | D53: =IF(ROUND(F150,0)=1,F53/-BF150,"--") -> -- | E53: -- | G53: 50 | H53: 1 | BF53: 1 | EY53: =$C$204 -> -620
A54: 50 | B54: Castanharana | C54: Lecythis sp. | D54: =IF(ROUND(F151,0)=1,F54/-BG151,"--") -> -- | E54: -- | G54: 50 | H54: 1 | BG54: 1 | EZ54: =$C$204 -> -620
A55: 51 | B55: Castanharana | C55: Lecythis sp. | D55: =IF(ROUND(F152,0)=1,F55/-BH152,"--") -> -- | E55: -- | G55: 50 | H55: 1 | BH55: 1 | FA55: =$C$204 -> -620
A56: 52 | B56: Castanha-sapucaia | C56: Lecythis pisonis Cambess. | D56: =IF(ROUND(F153,0)=1,F56/-BI153,"--") -> -- | E56: -- | G56: 50 | H56: 1 | BI56: 1 | FB56: =$C$204 -> -620
A57: 53 | B57: Coração-de-negro | C57: Swartzia corrugata Benth. | D57: =IF(ROUND(F154,0)=1,F57/-BJ154,"--") -> -- | E57: -- | G57: 50 | H57: 1 | BJ57: 1 | FC57: =$C$204 -> -620
A58: 54 | B58: Cubarana | C58: Iryanthera paraensis Huber | D58: =IF(ROUND(F155,0)=1,F58/-BK155,"--") -> -- | E58: -- | G58: 50 | H58: 1 | BK58: 1 | FD58: =$C$204 -> -620
A59: 55 | B59: Guajará | C59: Sarcaulus brasiliensis (A.DC.) Eyma | D59: =IF(ROUND(F156,0)=1,F59/-BL156,"--") -> -- | E59: -- | G59: 50 | H59: 1 | BL59: 1 | FE59: =$C$204 -> -620
A60: 56 | B60: Guariúba | C60: Clarisia racemosa Ruiz & Pav | D60: =IF(ROUND(F157,0)=1,F60/-BM157,"--") -> -- | E60: -- | G60: 50 | H60: 1 | BM60: 1 | FF60: =$C$204 -> -620
A61: 57 | B61: Ingarana | C61: Zygia sp. | D61: =IF(ROUND(F158,0)=1,F61/-BN158,"--") -> -- | E61: -- | G61: 50 | H61: 1 | BN61: 1 | FG61: =$C$204 -> -620
A62: 59 | B62: Jarana | C62: Lecythis prancei S.A.Mori | D62: =IF(ROUND(F159,0)=1,F62/-BO159,"--") -> -- | E62: -- | G62: 50 | H62: 1 | BO62: 1 | FH62: =$C$204 -> -620
A63: 60 | B63: Macacaúba | C63: Platymiscium paraense Huber | D63: =IF(ROUND(F160,0)=1,F63/-BP160,"--") -> -- | E63: -- | G63: 50 | H63: 1 | BP63: 1 | FI63: =$C$204 -> -620
A64: 61 | B64: Mata-mata-branco | C64: Eschweilera coriacea (DC.) S.A.Mori | D64: =IF(ROUND(F161,0)=1,F64/-BQ161,"--") -> -- | E64: -- | G64: 50 | H64: 1 | BQ64: 1 | FJ64: =$C$204 -> -620
A65: 62 | B65: Matamata-preto | C65: Eschweilera ovata (Cambess.) Miers | D65: =IF(ROUND(F162,0)=1,F65/-BR162,"--") -> -- | E65: -- | G65: 50 | H65: 1 | BR65: 1 | FK65: =$C$204 -> -620
A66: 63 | B66: Matamata-vermelho | C66: Eschweilera sp. | D66: =IF(ROUND(F163,0)=1,F66/-BS163,"--") -> -- | E66: -- | G66: 50 | H66: 1 | BS66: 1 | FL66: =$C$204 -> -620
A67: 64 | B67: Muirapiranga | C67: Brosimum rubescens Taub. | D67: =IF(ROUND(F164,0)=1,F67/-BT164,"--") -> -- | E67: -- | G67: 50 | H67: 1 | BT67: 1 | FM67: =$C$204 -> -620
A68: 65 | B68: Paracutaco | C68: Swartzia schomburgkii Benth. | D68: =IF(ROUND(F165,0)=1,F68/-BU165,"--") -> -- | E68: -- | G68: 50 | H68: 1 | BU68: 1 | FN68: =$C$204 -> -620
A69: 66 | B69: Seringa | C69: Ecclinusa sp. | D69: =IF(ROUND(F166,0)=1,F69/-BV166,"--") -> -- | E69: -- | G69: 50 | H69: 1 | BV69: 1 | FO69: =$C$204 -> -620
A70: 67 | B70: Sucupira-vermelha | C70: Andira unifoliolata Ducke | D70: =IF(ROUND(F167,0)=1,F70/-BW167,"--") -> -- | E70: =IF(ROUND(F167,0)=1,F70/$F$200,"--") -> -- | G70: 50 | H70: 1 | BW70: 1 | FP70: =$C$204 -> -620
A71: 68 | B71: Tanibuca | C71: Buchenavia capitata Eichl | D71: =IF(ROUND(F168,0)=1,F71/-BX168,"--") -> -- | E71: -- | G71: 50 | H71: 1 | BX71: 1 | FQ71: =$C$204 -> -620
A72: 69 | B72: Uchi | C72: Endopleura uchi (Huber) Cuatrec. | D72: =IF(ROUND(F169,0)=1,F72/-BY169,"--") -> -- | E72: -- | G72: 50 | H72: 1 | BY72: 1 | FR72: =$C$204 -> -620
A73: 70 | B73: Uchi-coroa | C73: Endopleura sp. | D73: =IF(ROUND(F170,0)=1,F73/-BZ170,"--") -> -- | E73: -- | G73: 50 | H73: 1 | BZ73: 1 | FS73: =$C$204 -> -620
A74: 71 | B74: Uchirana | C74: Vantanea guianensis Aubl. | D74: =IF(ROUND(F171,0)=1,F74/-CA171,"--") -> -- | E74: -- | G74: 50 | H74: 1 | CA74: 1 | FT74: =$C$204 -> -620
A75: 72 | B75: Urucurana | C75: Swartzia recurva Poepp. | D75: =IF(ROUND(F172,0)=1,F75/-CB172,"--") -> -- | E75: -- | G75: 50 | H75: 1 | CB75: 1 | FU75: =$C$204 -> -620
A76: 73 | B76: Abacatearana | C76: Persea sp. | D76: =IF(ROUND(F173,0)=1,F76/-CC173,"--") -> -- | E76: -- | G76: 25 | H76: 1 | CC76: 1 | FV76: =$C$204 -> -620
A77: 74 | B77: Abiu | C77: Pouteria sp. 2 | D77: =IF(ROUND(F174,0)=1,F77/-CD174,"--") -> -- | E77: -- | G77: 25 | H77: 1 | CD77: 1 | FW77: =$C$204 -> -620
A78: 75 | B78: Abiu-branco | C78: Pouteria guianensis Aubl. | D78: =IF(ROUND(F175,0)=1,F78/-CE175,"--") -> -- | E78: -- | G78: 25 | H78: 1 | CE78: 1 | FX78: =$C$204 -> -620
A79: 76 | B79: Abiurana-Vermelha | C79: Pouteria plathyphylla (A.C.Sm.) Baehnni | D79: =IF(ROUND(F176,0)=1,F79/-CF176,"--") -> -- | E79: -- | G79: 25 | H79: 1 | CF79: 1 | FY79: =$C$204 -> -620
A80: 77 | B80: Abiu-vermelho | C80: Pouteria sagotiana (Baill) Eyma | D80: =IF(ROUND(F177,0)=1,F80/-CG177,"--") -> -- | E80: -- | G80: 25 | H80: 1 | CG80: 1 | FZ80: =$C$204 -> -620
A81: 78 | B81: Amarelinho | C81: Pogonophora schomburgkiana Miers ex Benth. | D81: =IF(ROUND(F178,0)=1,F81/-CH178,"--") -> -- | E81: -- | G81: 25 | H81: 1 | CH81: 1 | GA81: =$C$204 -> -620
A82: 79 | B82: Angelim-fava | C82: Parkia pendula (Willd.) Benth. ex Walp. | D82: =IF(ROUND(F179,0)=1,F82/-CI179,"--") -> -- | E82: -- | G82: 25 | H82: 1 | CI82: 1 | GB82: =$C$204 -> -620
A83: 81 | B83: Arura-branco | C83: Osteophloeum platyspermum (A.DC.) Warb. | D83: =IF(ROUND(F180,0)=1,F83/-CJ180,"--") -> -- | E83: -- | G83: 25 | H83: 1 | CJ83: 1 | GC83: =$C$204 -> -620
A84: 82 | B84: Balata-casca-grossa | C84: Pouteria sp.3 | D84: =IF(ROUND(F181,0)=1,F84/-CK181,"--") -> -- | E84: -- | G84: 25 | H84: 1 | CK84: 1 | GD84: =$C$204 -> -620
A85: 83 | B85: Balatinha | C85: Pouteria sp.4 | D85: =IF(ROUND(F182,0)=1,F85/-CL182,"--") -> -- | E85: -- | G85: 25 | H85: 1 | CL85: 1 | GE85: =$C$204 -> -620
A86: 84 | B86: Caju-açu | C86: Anacardium giganteum Hanc. ex Engl. | D86: =IF(ROUND(F183,0)=1,F86/-CM183,"--") -> -- | E86: -- | G86: 25 | H86: 1 | CM86: 1 | GF86: =$C$204 -> -620
A87: 86 | B87: Caju-preto | C87: Anacardium sp. | D87: =IF(ROUND(F184,0)=1,F87/-CN184,"--") -> -- | E87: -- | G87: 25 | H87: 1 | CN87: 1 | GG87: =$C$204 -> -620
A88: 88 | B88: Capitiú | C88: Siparuna sarmentosa Peckins | D88: =IF(ROUND(F185,0)=1,F88/-CO185,"--") -> -- | E88: -- | G88: 25 | H88: 1 | CO88: 1 | GH88: =$C$204 -> -620
A89: 89 | B89: Caramuri | C89: Pouteria sp.5 | D89: =IF(ROUND(F186,0)=1,F89/-CP186,"--") -> -- | E89: -- | G89: 25 | H89: 1 | CP89: 1 | GI89: =$C$204 -> -620
A90: 90 | B90: Carapanaúba | C90: Aspidosperma rigidium Rusby | D90: =IF(ROUND(F187,0)=1,F90/-CQ187,"--") -> -- | E90: -- | G90: 25 | H90: 1 | CQ90: 1 | GJ90: =$C$204 -> -620
A91: 91 | B91: Fava | C91: Vatairea sp.2 | D91: =IF(ROUND(F188,0)=1,F91/-CR188,"--") -> -- | E91: -- | G91: 25 | H91: 1 | CR91: 1 | GK91: =$C$204 -> -620
A92: 92 | B92: Fava-amargosa | C92: Vatairea paraensis Ducke | D92: =IF(ROUND(F189,0)=1,F92/-CS189,"--") -> -- | E92: -- | G92: 25 | H92: 1 | CS92: 1 | GL92: =$C$204 -> -620
A93: 93 | B93: Fava-bengué | C93: Parkia nitida Miq. | D93: =IF(ROUND(F190,0)=1,F93/-CT190,"--") -> -- | E93: -- | G93: 25 | H93: 1 | CT93: 1 | GM93: =$C$204 -> -620
A94: 94 | B94: Fava-bolacha | C94: Enterolobium sp. | D94: =IF(ROUND(F191,0)=1,F94/-CU191,"--") -> -- | E94: -- | G94: 25 | H94: 1 | CU94: 1 | GN94: =$C$204 -> -620
A95: 96 | B95: João-mole | C95: Neea sp. | D95: =IF(ROUND(F192,0)=1,F95/-CV192,"--") -> -- | E95: -- | G95: 25 | H95: 1 | CV95: 1 | GO95: =$C$204 -> -620
A96: 97 | B96: Macucu | C96: Licania heteromorpha Benth. var. heteromorpha | D96: =IF(ROUND(F193,0)=1,F96/-CW193,"--") -> -- | E96: -- | G96: 25 | H96: 1 | CW96: 1 | GP96: =$C$204 -> -620
A97: 98 | B97: Macucu-casca-grossa | C97: Licania oblongifolia Standl. | D97: =IF(ROUND(F194,0)=1,F97/-CX194,"--") -> -- | E97: -- | G97: 25 | H97: 1 | CX97: 1 | GQ97: =$C$204 -> -620
A98: 100 | B98: Parapará | C98: Jacaranda copaia (Aubl) D.Don | D98: =IF(ROUND(F195,0)=1,F98/-CY195,"--") -> -- | E98: -- | G98: 25 | H98: 1 | CY98: 1 | GR98: =$C$204 -> -620
A99: 101 | B99: Paricá | C99: Schizolobium amazonicum Huber ex Ducke | D99: =IF(ROUND(F196,0)=1,F99/-CZ196,"--") -> -- | E99: -- | G99: 25 | H99: 1 | CZ99: 1 | GS99: =$C$204 -> -620
A100: 102 | B100: Pequiá-marfim | C100: Aspidosperma spruceanum Benth. ex Engl. | D100: =IF(ROUND(F197,0)=1,F100/-DA197,"--") -> -- | E100: -- | G100: 25 | H100: 1 | DA100: 1 | GT100: =$C$204 -> -620
A101: 103 | B101: Tapuruzeiro | C101: Sterculia excelsa Mart. | D101: =IF(ROUND(F198,0)=1,F101/-DB198,"--") -> -- | E101: -- | G101: 25 | H101: 1 | DB101: 1 | GU101: =$C$204 -> -620
A102: 104 | B102: Timborana | C102: Newtonia suaveolens (Miq.) Brenan. | D102: =IF(ROUND(F199,0)=1,F102/-DC199,"--") -> -- | E102: =IF(ROUND(F199,0)=1,F102/$F$200,"--") -> -- | G102: 25 | H102: 1 | DC102: 1 | GV102: =$C$204 -> -620
A103: 1 | B103: Bin_Andiroba_x1 | E103: =IF(ROUND(F103,0)=1,"Sim","Não") -> Não | J103: 1 | K103: -0.06327291667 | DD103: =$C$203 -> 30
A104: 2 | B104: Bin_Angelim-Vermelho_x2 | E104: =IF(ROUND(F104,0)=1,"Sim","Não") -> Não | J104: 1 | L104: -0.8401125 | DE104: =$C$203 -> 30
A105: 3 | B105: Bin_Cumaru_x3 | E105: Não | J105: 1 | M105: -8.208616667 | DF105: =$C$203 -> 30
A106: 4 | B106: Bin_Jatobá_x4 | E106: Não | J106: 1 | N106: -2.105745833 | DG106: =$C$203 -> 30
A107: 5 | B107: Bin_Maparajuba_x5 | E107: Não | J107: 1 | O107: -3.109147917 | DH107: =$C$203 -> 30
A108: 6 | B108: Bin_Massaranduba_x6 | E108: Não | J108: 1 | P108: -7.78689375 | DI108: =$C$203 -> 30
A109: 7 | B109: Bin_Muiracatiara_x7 | E109: Não | J109: 1 | Q109: -0.92804375 | DJ109: =$C$203 -> 30
A110: 8 | B110: Bin_Angelim_x8 | E110: Não | J110: 1 | R110: -0.1171354167 | DK110: =$C$203 -> 30
A111: 9 | B111: Bin_Angelim-pedra_x9 | E111: Não | J111: 1 | S111: -4.416320833 | DL111: =$C$203 -> 30
A112: 10 | B112: Bin_Cumaru-do-brejo_x10 | E112: Não | J112: 1 | T112: -0.2934541667 | DM112: =$C$203 -> 30
A113: 11 | B113: Bin_Cumarurana_x11 | E113: Não | J113: 1 | U113: -0.3890416667 | DN113: =$C$203 -> 30
A114: 12 | B114: Bin_Cupiúba_x12 | E114: Não | J114: 1 | V114: -5.323070833 | DO114: =$C$203 -> 30
A115: 13 | B115: Bin_Itaúba_x13 | E115: Não | J115: 1 | W115: -6.08956875 | DP115: =$C$203 -> 30
A116: 14 | B116: Bin_Jutaí_x14 | E116: Não | J116: 1 | X116: -0.2543729167 | DQ116: =$C$203 -> 30
A117: 15 | B117: Bin_Jutaí-pororoca_x15 | E117: Não | J117: 1 | Y117: -1.090366667 | DR117: =$C$203 -> 30
A118: 16 | B118: Bin_Louro_x16 | E118: Não | J118: 1 | Z118: -0.08411041667 | DS118: =$C$203 -> 30
A119: 17 | B119: Bin_Louro-amarelo_x17 | E119: Não | J119: 1 | AA119: -0.1913604167 | DT119: =$C$203 -> 30
A120: 18 | B120: Bin_Louro-aritú_x18 | E120: Não | J120: 1 | AB120: -0.6751854167 | DU120: =$C$203 -> 30
A121: 19 | B121: Bin_Louro-canela_x19 | E121: Não | J121: 1 | AC121: -0.3568375 | DV121: =$C$203 -> 30
A122: 20 | B122: Bin_Louro-fofo_x20 | E122: Não | J122: 1 | AD122: -0.09012083333 | DW122: =$C$203 -> 30
A123: 21 | B123: Bin_Louro-gamela_x21 | E123: Não | J123: 1 | AE123: -0.2312020833 | DX123: =$C$203 -> 30
A124: 22 | B124: Bin_Louro-porco_x22 | E124: Não | J124: 1 | AF124: -0.06404375 | DY124: =$C$203 -> 30
A125: 23 | B125: Bin_Louro-preto_x23 | E125: Não | J125: 1 | AG125: -2.116764583 | DZ125: =$C$203 -> 30
A126: 24 | B126: Bin_Marupá_x24 | E126: Não | J126: 1 | AH126: -0.74908125 | EA126: =$C$203 -> 30
A127: 25 | B127: Bin_Pequiá_x25 | E127: Não | J127: 1 | AI127: -3.064327083 | EB127: =$C$203 -> 30
A128: 26 | B128: Bin_Pequiarana_x26 | E128: Não | J128: 1 | AJ128: -1.150825 | EC128: =$C$203 -> 30
A129: 27 | B129: Bin_Preciosa_x27 | E129: Não | J129: 1 | AK129: -0.1570625 | ED129: =$C$203 -> 30
A130: 28 | B130: Bin_Quarubarana_x28 | E130: Não | J130: 1 | AL130: -0.05246041667 | EE130: =$C$203 -> 30
A131: 29 | B131: Bin_Ripeiro_x29 | E131: Não | J131: 1 | AM131: -0.8181166667 | EF131: =$C$203 -> 30
A132: 30 | B132: Bin_Sucupira-amarela_x30 | E132: Não | J132: 1 | AN132: -1.052114583 | EG132: =$C$203 -> 30
A133: 31 | B133: Bin_Sucupira-preta_x31 | E133: Não | J133: 1 | AO133: -0.1178125 | EH133: =$C$203 -> 30
A134: 32 | B134: Bin_Tauari-branco_x32 | E134: Não | J134: 1 | AP134: -0.3114479167 | EI134: =$C$203 -> 30
A135: 33 | B135: Bin_Tauari-vermelho_x33 | E135: Não | J135: 1 | AQ135: -0.92088125 | EJ135: =$C$203 -> 30
A136: 34 | B136: Bin_Ucuúba_x34 | E136: Não | J136: 1 | AR136: -0.2634875 | EK136: =$C$203 -> 30
A137: 35 | B137: Bin_Ucuúba-branca_x35 | E137: Não | J137: 1 | AS137: -0.146275 | EL137: =$C$203 -> 30
A138: 36 | B138: Bin_Violeta_x36 | E138: Não | J138: 1 | AT138: -0.09012083333 | EM138: =$C$203 -> 30
A139: 37 | B139: Bin_Virola_x37 | E139: Não | J139: 1 | AU139: -0.1266416667 | EN139: =$C$203 -> 30
A140: 38 | B140: Bin_Abiurana-ferro_x38 | E140: Não | J140: 1 | AV140: -0.4051104167 | EO140: =$C$203 -> 30
A141: 39 | B141: Bin_Acariquara_x39 | E141: Não | J141: 1 | AW141: -0.9568770833 | EP141: =$C$203 -> 30
A142: 40 | B142: Bin_Amapá_x40 | E142: Não | J142: 1 | AX142: -0.922775 | EQ142: =$C$203 -> 30
A143: 42 | B143: Bin_Amapá-doce_x42 | E143: Não | J143: 1 | AY143: -1.760058333 | ER143: =$C$203 -> 30
A144: 43 | B144: Bin_Angelim-rajado_x43 | E144: Não | J144: 1 | AZ144: -0.4887791667 | ES144: =$C$203 -> 30
A145: 44 | B145: Bin_Arurá-vermelho_x44 | E145: Não | J145: 1 | BA145: -0.3878583333 | ET145: =$C$203 -> 30
A146: 45 | B146: Bin_Bacuri_x45 | E146: Não | J146: 1 | BB146: -0.1584145833 | EU146: =$C$203 -> 30
A147: 46 | B147: Bin_Balatarana_x46 | E147: Não | J147: 1 | BC147: -0.1697333333 | EV147: =$C$203 -> 30
A148: 47 | B148: Bin_Breu_x47 | E148: Não | J148: 1 | BD148: -0.12455 | EW148: =$C$203 -> 30
A149: 48 | B149: Bin_Breu-branco_x48 | E149: Não | J149: 1 | BE149: -1.762158333 | EX149: =$C$203 -> 30
A150: 49 | B150: Bin_Breu-vermelho_x49 | E150: Não | J150: 1 | BF150: -1.61563125 | EY150: =$C$203 -> 30
A151: 50 | B151: Bin_Castanharana_x50 | E151: Não | J151: 1 | BG151: -0.8121729167 | EZ151: =$C$203 -> 30
A152: 51 | B152: Bin_Castanharana_x51 | E152: Não | J152: 1 | BH152: -0.52375625 | FA152: =$C$203 -> 30
A153: 52 | B153: Bin_Castanha-sapucaia_x52 | E153: Não | J153: 1 | BI153: -1.404810417 | FB153: =$C$203 -> 30
A154: 53 | B154: Bin_Coração-de-negro_x53 | E154: Não | J154: 1 | BJ154: -0.1167833333 | FC154: =$C$203 -> 30
A155: 54 | B155: Bin_Cubarana_x54 | E155: Não | J155: 1 | BK155: -0.1780354167 | FD155: =$C$203 -> 30
A156: 55 | B156: Bin_Guajará_x55 | E156: Não | J156: 1 | BL156: -1.784233333 | FE156: =$C$203 -> 30
A157: 56 | B157: Bin_Guariúba_x56 | E157: Não | J157: 1 | BM157: -1.27016875 | FF157: =$C$203 -> 30
A158: 57 | B158: Bin_Ingarana_x57 | E158: Não | J158: 1 | BN158: -0.1467791667 | FG158: =$C$203 -> 30
A159: 59 | B159: Bin_Jarana_x59 | E159: Não | J159: 1 | BO159: -0.22346875 | FH159: =$C$203 -> 30
A160: 60 | B160: Bin_Macacaúba_x60 | E160: Não | J160: 1 | BP160: -0.6591604167 | FI160: =$C$203 -> 30
A161: 61 | B161: Bin_Mata-mata-branco_x61 | E161: Não | J161: 1 | BQ161: -0.1525166667 | FJ161: =$C$203 -> 30
A162: 62 | B162: Bin_Matamata-preto_x62 | E162: Não | J162: 1 | BR162: -2.747595833 | FK162: =$C$203 -> 30
A163: 63 | B163: Bin_Matamata-vermelho_x63 | E163: Não | J163: 1 | BS163: -2.997752083 | FL163: =$C$203 -> 30
A164: 64 | B164: Bin_Muirapiranga_x64 | E164: Não | J164: 1 | BT164: -1.812597917 | FM164: =$C$203 -> 30
A165: 65 | B165: Bin_Paracutaco_x65 | E165: Não | J165: 1 | BU165: -1.794170833 | FN165: =$C$203 -> 30
A166: 66 | B166: Bin_Seringa_x66 | E166: Não | J166: 1 | BV166: -0.4315625 | FO166: =$C$203 -> 30
A167: 67 | B167: Bin_Sucupira-vermelha_x67 | E167: Não | J167: 1 | BW167: -1.03685 | FP167: =$C$203 -> 30
A168: 68 | B168: Bin_Tanibuca_x68 | E168: =IF(ROUND(F168,0)=1,"Sim","Não") -> Não | J168: 1 | BX168: -2.122089583 | FQ168: =$C$203 -> 30
A169: 69 | B169: Bin_Uchi_x69 | E169: Não | J169: 1 | BY169: -1.242104167 | FR169: =$C$203 -> 30
A170: 70 | B170: Bin_Uchi-coroa_x70 | E170: Não | J170: 1 | BZ170: -0.39405625 | FS170: =$C$203 -> 30
A171: 71 | B171: Bin_Uchirana_x71 | E171: Não | J171: 1 | CA171: -0.90888125 | FT171: =$C$203 -> 30
A172: 72 | B172: Bin_Urucurana_x72 | E172: Não | J172: 1 | CB172: -0.5594270833 | FU172: =$C$203 -> 30
A173: 73 | B173: Bin_Abacatearana _x73 | E173: Não | J173: 1 | CC173: -0.4332729167 | FV173: =$C$203 -> 30
A174: 74 | B174: Bin_Abiu_x74 | E174: Não | J174: 1 | CD174: -7.038608333 | FW174: =$C$203 -> 30
A175: 75 | B175: Bin_Abiu-branco_x75 | E175: Não | J175: 1 | CE175: -0.1178125 | FX175: =$C$203 -> 30
A176: 76 | B176: Bin_Abiurana-Vermelha_x76 | E176: Não | J176: 1 | CF176: -0.3108229167 | FY176: =$C$203 -> 30
A177: 77 | B177: Bin_Abiu-vermelho_x77 | E177: Não | J177: 1 | CG177: -0.4568583333 | FZ177: =$C$203 -> 30
A178: 78 | B178: Bin_Amarelinho_x78 | E178: Não | J178: 1 | CH178: -1.277377083 | GA178: =$C$203 -> 30
A179: 79 | B179: Bin_Angelim-fava_x79 | E179: Não | J179: 1 | CI179: -0.8010895833 | GB179: =$C$203 -> 30
A180: 81 | B180: Bin_Arura-branco_x81 | E180: Não | J180: 1 | CJ180: -1.015116667 | GC180: =$C$203 -> 30
A181: 82 | B181: Bin_Balata-casca-grossa_x82 | E181: Não | J181: 1 | CK181: -0.1890229167 | GD181: =$C$203 -> 30
A182: 83 | B182: Bin_Balatinha_x83 | E182: Não | J182: 1 | CL182: -0.3524020833 | GE182: =$C$203 -> 30
A183: 84 | B183: Bin_Caju-açu_x84 | E183: Não | J183: 1 | CM183: -0.50876875 | GF183: =$C$203 -> 30
A184: 86 | B184: Bin_Caju-preto_x86 | E184: Não | J184: 1 | CN184: -0.5589291667 | GG184: =$C$203 -> 30
A185: 88 | B185: Bin_Capitiú_x88 | E185: Não | J185: 1 | CO185: -0.1305291667 | GH185: =$C$203 -> 30
A186: 89 | B186: Bin_Caramuri_x89 | E186: Não | J186: 1 | CP186: -2.087104167 | GI186: =$C$203 -> 30
A187: 90 | B187: Bin_Carapanaúba_x90 | E187: Não | J187: 1 | CQ187: -3.397939583 | GJ187: =$C$203 -> 30
A188: 91 | B188: Bin_Fava_x91 | E188: Não | J188: 1 | CR188: -0.1350833333 | GK188: =$C$203 -> 30
A189: 92 | B189: Bin_Fava-amargosa_x92 | E189: Não | J189: 1 | CS189: -1.2350375 | GL189: =$C$203 -> 30
A190: 93 | B190: Bin_Fava-bengué_x93 | E190: Não | J190: 1 | CT190: -0.5909625 | GM190: =$C$203 -> 30
A191: 94 | B191: Bin_Fava-bolacha_x94 | E191: Não | J191: 1 | CU191: -1.982252083 | GN191: =$C$203 -> 30
A192: 96 | B192: Bin_João-mole_x96 | E192: Não | J192: 1 | CV192: -0.1145125 | GO192: =$C$203 -> 30
A193: 97 | B193: Bin_Macucu_x97 | E193: Não | J193: 1 | CW193: -4.179302083 | GP193: =$C$203 -> 30
A194: 98 | B194: Bin_Macucu-casca-grossa_x98 | E194: Não | J194: 1 | CX194: -0.2666375 | GQ194: =$C$203 -> 30
A195: 100 | B195: Bin_Parapará_x100 | E195: Não | J195: 1 | CY195: -0.1114875 | GR195: =$C$203 -> 30
A196: 101 | B196: Bin_Paricá_x101 | E196: Não | J196: 1 | CZ196: -1.540045833 | GS196: =$C$203 -> 30
A197: 102 | B197: Bin_Pequiá-marfim_x102 | E197: Não | J197: 1 | DA197: -0.3478604167 | GT197: =$C$203 -> 30
A198: 103 | B198: Bin_Tapuruzeiro_x103 | E198: Não | J198: 1 | DB198: -0.1189666667 | GU198: =$C$203 -> 30
A199: 104 | B199: Bin_Timborana_x104 | E199: Não | J199: 1 | DC199: -0.6975020833 | GV199: =$C$203 -> 30
B200: VT | E200: VT: | H200: -1 | I200: 1
... 96 more rows

Sheet LEIA-ME
A1: LEI

Sheet UMF1
A1: Área UMF1: | B1: =3000*30 -> 90000
B2: # de espécies | C2: 20 m3 | D2: 25 m3 | E2: 30 m3 | F2: 35 m3 | G2: 40 m3
B3: 9 | C3: 3391.255 | D3: 3391.255 | E3: 3391.255 | F3: 3391.255 | G3: 3391.255
B4: 10 | C4: 3391.255 | D4: 3391.255 | E4: 3391.255 | F4: 3391.255 | G4: 3391.255
B5: 11 | C5: 3391.255 | D5: 3391.255 | E5: 3391.255 | F5: 3391.255 | G5: 3391.255
B6: 12 | C6: 3391.255 | D6: 3391.255 | E6: 3391.255 | F6: 3391.255 | G6: 3391.255
B7: 13 | C7: 3391.255 | D7: 3391.255 | E7: 3391.255 | F7: 3391.255 | G7: 3391.255
B8: 14 | C8: 3391.255 | D8: 3391.255 | E8: 3391.255 | F8: 3391.255 | G8: 3391.255
B9: 15 | C9: 3391.255 | D9: 3391.255 | E9: 3391.255 | F9: 3391.255 | G9: 3391.255
B10: 16 | C10: 3391.255 | D10: 3391.255 | E10: 3391.255 | F10: 3391.255 | G10: 3391.255
B11: 17 | C11: 3391.255 | D11: 3391.255 | E11: 3391.255 | F11: 3391.255 | G11: 3391.255
B12: 18 | C12: 3391.255 | D12: 3391.255 | E12: 3391.255 | F12: 3391.255 | G12: 3391.255
B13: 19 | C13: 3391.255 | D13: 3391.255 | E13: 3391.255 | F13: 3391.255 | G13: 3391.255
B14: 20 | C14: 3391.255 | D14: 3391.255 | E14: 3391.255 | F14: 3391.255 | G14: 3391.255
B15: 21 | C15: 3391.255 | D15: 3391.255 | E15: 3391.255 | F15: 3391.255 | G15: 3391.255
B16: 22 | C16: 3391.255 | D16: 3391.255 | E16: 3391.255 | F16: 3391.255 | G16: 3391.255
B17: 23 | C17: 3391.255 | D17: 3391.255 | E17: 3391.255 | F17: 3391.255 | G17: 3391.255
B18: 24 | C18: 3391.255 | D18: 3391.255 | E18: 3391.255 | F18: 3391.255 | G18: 3391.255
B19: 25 | C19: 3391.255 | D19: 3391.255 | E19: 3391.255 | F19: 3391.255 | G19: 3391.255
B20: 26 | C20: 3391.255 | D20: 3391.255 | E20: 3391.255 | F20: 3391.255 | G20: 3391.255
B21: 27 | C21: 3391.255 | D21: 3391.255 | E21: 3391.255 | F21: 3391.255 | G21: 3391.255
B22: 28 | C22: 3391.255 | D22: 3391.255 | E22: 3391.255 | F22: 3391.255 | G22: 3391.255
B23: 29 | C23: 3391.255 | D23: 3391.255 | E23: 3391.255 | F23: 3391.255 | G23: 3391.255
B24: 30 | C24: 3391.255 | D24: 3391.255 | E24: 3391.255 | F24: 3391.255 | G24: 3391.255
B25: 31 | C25: 3391.255 | D25: 3391.255 | E25: 3391.255 | F25: 3391.255 | G25: 3391.255
B26: 32 | C26: 3391.255 | D26: 3391.255 | E26: 3391.255 | F26: 3391.255 | G26: 3391.255
B27: 33 | C27: 3391.255 | D27: 3391.255 | E27: 3391.255 | F27: 3391.255 | G27: 3391.255
B28: 34 | C28: 3391.255 | D28: 3391.255 | E28: 3391.255 | F28: 3391.255 | G28: 3391.255
B29: 35 | C29: 3391.255 | D29: 3391.255 | E29: 3391.255 | F29: 3391.255 | G29: 3391.255
B30: 36 | C30: 3391.255 | D30: 3391.255 | E30: 3391.255 | F30: 3391.255 | G30: 3391.255
B31: 37 | C31: 3391.255 | D31: 3391.255 | E31: 3391.255 | F31: 3391.255 | G31: 3391.255 | H31: Começa a reduzir volume das espécies valiosas, neste caso do segundo grupo em valor (90)
B32: 38 | C32: 3390.988333 | D32: 3390.921667 | E32: 3390.855 | F32: 3390.788333 | G32: 3390.721667 | H32: =C31-C32 -> 0.2666666667 | I32: =D31-D32 -> 0.3333333334 | J32: 0.4 | K32: 0.4666666667 | L32: =G31-G32 -> 0.5333333333
B33: 39 | C33: 3390.721667 | D33: 3390.588333 | E33: 3390.455 | F33: 3390.321667 | G33: 3390.188333 | H33: =C32-C33 -> 0.2666666667 | I33: =D32-D33 -> 0.3333333333 | J33: =E32-E33 -> 0.4 | K33: =F32-F33 -> 0.4666666667 | L33: =G32-G33 -> 0.5333333333
B34: 40 | C34: 3390.455 | D34: 3390.255 | E34: 3390.055 | F34: 3389.855 | G34: 3389.655 | H34: 0.2666666667 | I34: 0.3333333333 | J34: 0.4 | K34: 0.4666666667 | L34: 0.5333333333
B35: 41 | C35: 3390.188333 | D35: 3389.921667 | E35: 3389.655 | F35: 3389.388333 | G35: 3389.121667 | H35: 0.2666666667 | I35: 0.3333333333 | J35: 0.4 | K35: 0.4666666667 | L35: 0.5333333333
B36: 42 | C36: 3389.921667 | D36: 3389.588333 | E36: 3389.255 | F36: 3388.921667 | G36: 3388.588333 | H36: 0.2666666667 | I36: 0.3333333333 | J36: 0.4 | K36: 0.4666666667 | L36: 0.5333333333
B37: 43 | C37: 3389.655 | D37: 3389.255 | E37: 3388.855 | F37: 3388.455 | G37: 3388.055 | H37: 0.2666666667 | I37: 0.3333333333 | J37: 0.4 | K37: 0.4666666667 | L37: 0.5333333333
B38: 44 | C38: 3389.388333 | D38: 3388.921667 | E38: 3388.455 | F38: 3387.988333 | G38: 3387.521667 | H38: 0.2666666667 | I38: 0.3333333333 | J38: 0.4 | K38: 0.4666666667 | L38: 0.5333333333
B39: 45 | C39: 3389.121667 | D39: 3388.588333 | E39: 3388.055 | F39: 3387.521667 | G39: 3386.988333 | H39: =C38-C39 -> 0.2666666667 | I39: =D38-D39 -> 0.3333333333 | J39: =E38-E39 -> 0.4 | K39: =F38-F39 -> 0.4666666667 | L39: 0.5333333333
B40: 46 | C40: 3388.855 | D40: 3388.255 | E40: 3387.655 | F40: 3387.055 | G40: 3386.455 | H40: 0.2666666667 | I40: 0.3333333333 | J40: 0.4 | K40: 0.4666666667 | L40: 0.5333333333
B41: 47 | C41: 3388.588333 | D41: 3387.921667 | E41: 3387.255 | F41: 3386.588333 | G41: 3385.921667 | H41: 0.2666666667 | I41: 0.3333333333 | J41: 0.4 | K41: 0.4666666667 | L41: 0.5333333333
B42: 48 | C42: 3388.321667 | D42: 3387.588333 | E42: 3386.855 | F42: 3386.121667 | G42: 3385.388333 | H42: 0.2666666667 | I42: 0.3333333333 | J42: 0.4 | K42: 0.4666666667 | L42: 0.5333333333
B43: 49 | C43: 3388.055 | D43: 3387.255 | E43: 3386.455 | F43: 3385.655 | G43: 3384.855 | H43: 0.2666666667 | I43: 0.3333333333 | J43: 0.4 | K43: 0.4666666667 | L43: 0.5333333333
B44: 50 | C44: 3387.788333 | D44: 3386.921667 | E44: 3386.055 | F44: 3385.188333 | G44: 3384.321667 | H44: 0.2666666667 | I44: 0.3333333333 | J44: 0.4 | K44: 0.4666666667 | L44: 0.5333333333
B45: 51 | C45: 3387.521667 | D45: 3386.588333 | E45: 3385.655 | F45: 3384.721667 | G45: 3383.788333 | H45: 0.2666666667 | I45: 0.3333333333 | J45: 0.4 | K45: 0.4666666667 | L45: 0.5333333333
B46: 52 | C46: 3387.255 | D46: 3386.255 | E46: 3385.255 | F46: 3384.255 | G46: 3383.255 | H46: 0.2666666667 | I46: 0.3333333333 | J46: 0.4 | K46: 0.4666666667 | L46: 0.5333333333
B47: 53 | C47: 3386.988333 | D47: 3385.921667 | E47: 3384.855 | F47: 3383.788333 | G47: 3382.721667 | H47: 0.2666666667 | I47: 0.3333333333 | J47: 0.4 | K47: 0.4666666667 | L47: 0.5333333333
B48: 54 | C48: 3386.721667 | D48: 3385.588333 | E48: 3384.455 | F48: 3383.321667 | G48: 3382.188333 | H48: 0.2666666667 | I48: 0.3333333333 | J48: 0.4 | K48: 0.4666666667 | L48: 0.5333333334
B49: 55 | C49: 3386.455 | D49: 3385.255 | E49: 3384.055 | F49: 3382.855 | G49: 3381.655 | H49: 0.2666666667 | I49: 0.3333333333 | J49: 0.4 | K49: 0.4666666667 | L49: 0.5333333333
B50: 56 | C50: 3386.188333 | D50: 3384.921667 | E50: 3383.655 | F50: 3382.388333 | G50: 3381.121667 | H50: 0.2666666667 | I50: 0.3333333333 | J50: 0.4 | K50: 0.4666666667 | L50: 0.5333333333
B51: 57 | C51: 3385.921667 | D51: 3384.588333 | E51: 3383.255 | F51: 3381.921667 | G51: 3380.588333 | H51: 0.2666666667 | I51: 0.3333333333 | J51: 0.4 | K51: 0.4666666667 | L51: 0.5333333333
B52: 58 | C52: 3385.655 | D52: 3384.255 | E52: 3382.855 | F52: 3381.455 | G52: 3380.055 | H52: 0.2666666667 | I52: 0.3333333333 | J52: 0.4 | K52: 0.4666666667 | L52: 0.5333333333
B53: 59 | C53: 3385.388333 | D53: 3383.921667 | E53: 3382.455 | F53: 3380.988333 | G53: 3379.521667 | H53: 0.2666666667 | I53: 0.3333333333 | J53: 0.4 | K53: 0.4666666667 | L53: 0.5333333333
B54: 60 | C54: 3385.121667 | D54: 3383.588333 | E54: 3382.055 | F54: 3380.521667 | G54: 3378.988333 | H54: 0.2666666667 | I54: 0.3333333333 | J54: 0.4 | K54: 0.4666666667 | L54: 0.5333333333
B55: 61 | C55: 3384.855 | D55: 3383.255 | E55: 3381.655 | F55: 3380.055 | G55: 3378.455 | H55: 0.2666666667 | I55: 0.3333333333 | J55: 0.4 | K55: 0.4666666667 | L55: 0.5333333333
B56: 62 | C56: 3384.588333 | D56: 3382.921667 | E56: 3381.255 | F56: 3379.588333 | G56: 3377.921667 | H56: 0.2666666667 | I56: 0.3333333333 | J56: 0.4 | K56: 0.4666666667 | L56: 0.5333333333
B57: 63 | C57: 3384.321667 | D57: 3382.588333 | E57: 3380.855 | F57: 3379.121667 | G57: 3377.388333 | H57: 0.2666666667 | I57: 0.3333333333 | J57: 0.4 | K57: 0.4666666667 | L57: 0.5333333333
B58: 64 | C58: 3384.055 | D58: 3382.255 | E58: 3380.455 | F58: 3378.655 | G58: 3376.855 | H58: 0.2666666667 | I58: 0.3333333333 | J58: 0.4 | K58: 0.4666666667 | L58: 0.5333333333
B59: 65 | C59: 3383.788333 | D59: 3381.921667 | E59: 3380.055 | F59: 3378.188333 | G59: 3376.321667 | H59: 0.2666666667 | I59: 0.3333333333 | J59: 0.4 | K59: 0.4666666667 | L59: 0.5333333333
B60: 66 | C60: 3383.521667 | D60: 3381.588333 | E60: 3379.655 | F60: 3377.721667 | G60: 3375.788333 | H60: 0.2666666667 | I60: 0.3333333333 | J60: 0.4 | K60: 0.4666666667 | L60: 0.5333333333
B61: 67 | C61: 3383.255 | D61: 3381.255 | E61: 3379.255 | F61: 3377.255 | G61: 3375.255 | H61: 0.2666666667 | I61: 0.3333333333 | J61: 0.4 | K61: 0.4666666667 | L61: 0.5333333333
B62: 68 | C62: 3382.988333 | D62: 3380.921667 | E62: 3378.855 | F62: 3376.788333 | G62: 3374.721667 | H62: 0.2666666667 | I62: 0.3333333333 | J62: 0.4 | K62: 0.4666666667 | L62: 0.5333333333
B63: 69 | C63: 3382.721667 | D63: 3380.588333 | E63: 3378.455 | F63: 3376.321667 | G63: 3374.188333 | H63: 0.2666666667 | I63: 0.3333333333 | J63: 0.4 | K63: 0.4666666667 | L63: 0.5333333333
B64: 70 | C64: 3382.455 | D64: 3380.255 | E64: 3378.055 | F64: 3375.855 | G64: 3373.655 | H64: 0.2666666667 | I64: 0.3333333333 | J64: 0.4 | K64: 0.4666666667 | L64: 0.5333333333
B65: 71 | C65: 3382.021667 | D65: 3379.713333 | E65: 3377.405 | F65: 3375.096667 | G65: 3372.788333 | H65: 0.4333333333 | I65: 0.5416666667 | J65: 0.65 | K65: 0.7583333333 | L65: 0.8666666667 | M65: Começa a reduzir volume do grupo de espécie mais valiosas (120)
B66: 72 | C66: 3381.588333 | D66: 3379.171667 | E66: 3376.755 | F66: 3374.338333 | G66: 3371.921667 | H66: 0.4333333333 | I66: 0.5416666667 | J66: 0.65 | K66: 0.7583333333 | L66: 0.8666666667
B67: 73 | C67: 3381.155 | D67: 3378.63 | E67: 3376.105 | F67: 3373.58 | G67: 3371.055 | H67: 0.4333333333 | I67: 0.5416666667 | J67: 0.65 | K67: 0.7583333333 | L67: 0.8666666667
B68: 74 | C68: 3380.721667 | D68: 3378.088333 | E68: 3375.455 | F68: 3372.821667 | G68: 3370.188333 | H68: 0.4333333333 | I68: 0.5416666667 | J68: 0.65 | K68: 0.7583333333 | L68: 0.8666666667
B69: 75 | C69: 3380.288333 | D69: 3377.546667 | E69: 3374.805 | F69: 3372.063333 | G69: 3369.321667 | H69: 0.4333333333 | I69: 0.5416666667 | J69: 0.65 | K69: 0.7583333333 | L69: 0.8666666667
B70: 76 | C70: 3379.855 | D70: 3377.005 | E70: 3374.155 | F70: 3371.305 | G70: 3368.455 | H70: 0.4333333333 | I70: 0.5416666667 | J70: 0.65 | K70: 0.7583333333 | L70: 0.8666666667
B71: 77 | C71: 3379.421667 | D71: 3376.463333 | E71: 3373.505 | F71: 3370.546667 | G71: 3367.588333 | H71: 0.4333333333 | I71: 0.5416666667 | J71: 0.65 | K71: 0.7583333333 | L71: 0.8666666667
B72: 78 | C72: 3378.988333 | D72: 3375.921667 | E72: 3372.855 | F72: 3369.788333 | G72: 3366.721667 | H72: 0.4333333333 | I72: 0.5416666667 | J72: 0.65 | K72: 0.7583333333 | L72: 0.8666666667
B73: 79 | C73: 3378.555 | D73: 3375.38 | E73: 3372.205 | F73: 3369.03 | G73: 3365.855 | H73: 0.4333333333 | I73: 0.5416666667 | J73: 0.65 | K73: 0.7583333333 | L73: 0.8666666667
B74: 80 | C74: 3378.121667 | D74: 3374.838333 | E74: 3371.555 | F74: 3368.271667 | G74: 3364.988333 | H74: 0.4333333333 | I74: 0.5416666667 | J74: 0.65 | K74: 0.7583333333 | L74: 0.8666666667
B75: 81 | C75: 3377.688333 | D75: 3374.296667 | E75: 3370.905 | F75: 3367.513333 | G75: 3364.121667 | H75: 0.4333333333 | I75: 0.5416666667 | J75: 0.65 | K75: 0.7583333333 | L75: 0.8666666667
B76: 82 | C76: 3377.255 | D76: 3373.755 | E76: 3370.255 | F76: 3366.755 | G76: 3363.255 | H76: 0.4333333333 | I76: 0.5416666667 | J76: 0.65 | K76: 0.7583333333 | L76: 0.8666666667
B77: 83 | C77: 3376.821667 | D77: 3373.213333 | E77: 3369.605 | F77: 3365.996667 | G77: 3362.388333 | H77: 0.4333333333 | I77: 0.5416666667 | J77: 0.65 | K77: 0.7583333333 | L77: 0.8666666667
B78: 84 | C78: 3376.388333 | D78: 3372.671667 | E78: 3368.955 | F78: 3365.238333 | G78: 3361.521667 | H78: 0.4333333333 | I78: 0.5416666667 | J78: 0.65 | K78: 0.7583333333 | L78: 0.8666666667
B79: 85 | C79: 3375.955 | D79: 3372.13 | E79: 3368.305 | F79: 3364.48 | G79: 3360.655 | H79: 0.4333333333 | I79: 0.5416666667 | J79: 0.65 | K79: 0.7583333333 | L79: 0.8666666667
B80: 86 | C80: 3375.521667 | D80: 3371.588333 | E80: 3367.655 | F80: 3363.721667 | G80: 3359.788333 | H80: 0.4333333333 | I80: 0.5416666667 | J80: 0.65 | K80: 0.7583333333 | L80: 0.8666666667
B81: 87 | C81: 3375.088333 | D81: 3371.046667 | E81: 3367.005 | F81: 3362.963333 | G81: 3358.921667 | H81: 0.4333333333 | I81: 0.5416666667 | J81: 0.65 | K81: 0.7583333333 | L81: 0.8666666667
B82: 88 | C82: 3374.655 | D82: 3370.505 | E82: 3366.355 | F82: 3362.205 | G82: 3358.055 | H82: 0.4333333333 | I82: 0.5416666667 | J82: 0.65 | K82: 0.7583333333 | L82: 0.8666666667
B83: 89 | C83: 3374.221667 | D83: 3369.963333 | E83: 3365.705 | F83: 3361.446667 | G83: 3357.188333 | H83: 0.4333333333 | I83: 0.5416666667 | J83: 0.65 | K83: 0.7583333333 | L83: 0.8666666667
B84: 90 | C84: 3373.788333 | D84: 3369.421667 | E84: 3365.055 | F84: 3360.688333 | G84: 3356.321667 | H84: 0.4333333333 | I84: 0.5416666667 | J84: 0.65 | K84: 0.7583333333 | L84: 0.8666666667
B85: 91 | C85: 3373.355 | D85: 3368.88 | E85: 3364.405 | F85: 3359.93 | G85: 3355.455 | H85: 0.4333333333 | I85: 0.5416666667 | J85: 0.65 | K85: 0.7583333333 | L85: 0.8666666667
B86: 92 | C86: 3372.921667 | D86: 3368.338333 | E86: 3363.755 | F86: 3359.171667 | G86: 3354.588333 | H86: 0.4333333333 | I86: 0.5416666667 | J86: 0.65 | K86: 0.7583333333 | L86: 0.8666666667
B87: 93 | C87: 3372.488333 | D87: 3367.796667 | E87: 3363.105 | F87: 3358.413333 | G87: 3353.721667 | H87: 0.4333333333 | I87: 0.5416666667 | J87: 0.65 | K87: 0.7583333333 | L87: 0.8666666667
B88: 94 | C88: 3372.055 | D88: 3367.255 | E88: 3362.455 | F88: 3357.655 | G88: 3352.855 | H88: 0.4333333333 | I88: 0.5416666667 | J88: 0.65 | K88: 0.7583333333 | L88: 0.8666666667
B89: 95 | C89: 3371.621667 | D89: 3366.713333 | E89: 3361.805 | F89: 3356.896667 | G89: 3351.988333 | H89: 0.4333333333 | I89: 0.5416666667 | J89: 0.65 | K89: 0.7583333333 | L89: 0.8666666667
B90: 96 | C90: 3371.188333 | D90: 3366.171667 | E90: 3361.155 | F90: 3356.138333 | G90: 3351.121667 | H90: 0.4333333333 | I90: 0.5416666667 | J90: 0.65 | K90: 0.7583333333 | L90: 0.8666666667
B91: 97 | C91: 3370.755 | D91: 3365.63 | E91: 3360.505 | F91: 3355.38 | G91: 3350.255 | H91: =C90-C91 -> 0.4333333333 | I91: =D90-D91 -> 0.5416666667 | J91: =E90-E91 -> 0.65 | K91: =F90-F91 -> 0.7583333333 | L91: 0.8666666667
H93: =G91/C3 -> 0.9879100805 | I93: =1-H93 -> 0.01208991951

Sheet UMF2
A1: Área UMF1: | B1: 30000
B2: # de espécies | C2: 20 m3 | D2: 25 m3 | E2: 30 m3 | F2: 35 m3 | G2: 40 m3
B3: 9 | C3: 3391.255 | D3: 3391.255 | E3: 3391.255 | F3: 3391.255 | G3: 3391.255
A4: =B1/30 -> 1000 | B4: 10 | C4: 3391.255 | D4: 3391.255 | E4: 3391.255 | F4: 3391.255 | G4: 3391.255
B5: 11 | C5: 3391.255 | D5: 3391.255 | E5: 3391.255 | F5: 3391.255 | G5: 3391.255
B6: 12 | C6: 3391.255 | D6: 3391.255 | E6: 3391.255 | F6: 3391.255 | G6: 3391.255
B7: 13 | C7: 3391.255 | D7: 3391.255 | E7: 3391.255 | F7: 3391.255 | G7: 3391.255
B8: 14 | C8: 3391.255 | D8: 3391.255 | E8: 3391.255 | F8: 3391.255 | G8: 3391.255
B9: 15 | C9: 3391.255 | D9: 3391.255 | E9: 3391.255 | F9: 3391.255 | G9: 3391.255
B10: 16 | C10: 3391.255 | D10: 3391.255 | E10: 3391.255 | F10: 3391.255 | G10: 3391.255
B11: 17 | C11: 3391.255 | D11: 3391.255 | E11: 3391.255 | F11: 3391.255 | G11: 3391.255
B12: 18 | C12: 3391.255 | D12: 3391.255 | E12: 3391.255 | F12: 3391.255 | G12: 3391.255
B13: 19 | C13: 3391.255 | D13: 3391.255 | E13: 3391.255 | F13: 3391.255 | G13: 3391.255
B14: 20 | C14: 3391.255 | D14: 3391.255 | E14: 3391.255 | F14: 3391.255 | G14: 3391.255
B15: 21 | C15: 3391.255 | D15: 3391.255 | E15: 3391.255 | F15: 3391.255 | G15: 3391.255
B16: 22 | C16: 3391.255 | D16: 3391.255 | E16: 3391.255 | F16: 3391.255 | G16: 3391.255
B17: 23 | C17: 3391.255 | D17: 3391.255 | E17: 3391.255 | F17: 3391.255 | G17: 3391.255
B18: 24 | C18: 3391.255 | D18: 3391.255 | E18: 3391.255 | F18: 3391.255 | G18: 3391.255
B19: 25 | C19: 3391.255 | D19: 3391.255 | E19: 3391.255 | F19: 3391.255 | G19: 3391.255
B20: 26 | C20: 3391.255 | D20: 3391.255 | E20: 3391.255 | F20: 3391.255 | G20: 3391.255
B21: 27 | C21: 3391.255 | D21: 3391.255 | E21: 3391.255 | F21: 3391.255 | G21: 3391.255
B22: 28 | C22: 3391.255 | D22: 3391.255 | E22: 3391.255 | F22: 3391.255 | G22: 3391.255
B23: 29 | C23: 3391.255 | D23: 3391.255 | E23: 3391.255 | F23: 3391.255 | G23: 3391.255
B24: 30 | C24: 3391.255 | D24: 3391.255 | E24: 3391.255 | F24: 3391.255 | G24: 3391.255
B25: 31 | C25: 3391.255 | D25: 3391.255 | E25: 3391.255 | F25: 3391.255 | G25: 3391.255
B26: 32 | C26: 3391.255 | D26: 3391.255 | E26: 3391.255 | F26: 3391.255 | G26: 3391.255
B27: 33 | C27: 3391.255 | D27: 3391.255 | E27: 3391.255 | F27: 3391.255 | G27: 3391.255
B28: 34 | C28: 3391.255 | D28: 3391.255 | E28: 3391.255 | F28: 3391.255 | G28: 3391.255
B29: 35 | C29: 3391.255 | D29: 3391.255 | E29: 3391.255 | F29: 3391.255 | G29: 3391.255
B30: 36 | C30: 3391.255 | D30: 3391.255 | E30: 3391.255 | F30: 3391.255 | G30: 3391.255
B31: 37 | C31: 3391.255 | D31: 3391.255 | E31: 3391.255 | F31: 3391.255 | G31: 3391.255 | H31: Começa a reduzir volume das espécies valiosas, neste caso do segundo grupo em valor (90)
B32: 38 | C32: 3390.455 | D32: 3390.255 | E32: 3390.055 | F32: 3389.855 | G32: 3389.655 | H32: =C31-C32 -> 0.8 | I32: =D31-D32 -> 1 | J32: 1.2 | K32: 1.4 | L32: 1.6
B33: 39 | C33: 3389.655 | D33: 3389.255 | E33: 3388.855 | F33: 3388.455 | G33: 3388.055 | H33: =C32-C33 -> 0.8 | I33: =D32-D33 -> 1 | J33: =E32-E33 -> 1.2 | K33: =F32-F33 -> 1.4 | L33: =G32-G33 -> 1.6
B34: 40 | C34: 3388.855 | D34: 3388.255 | E34: 3387.655 | F34: 3387.055 | G34: 3386.455 | H34: 0.8 | I34: 1 | J34: 1.2 | K34: 1.4 | L34: 1.6
B35: 41 | C35: 3388.055 | D35: 3387.255 | E35: 3386.455 | F35: 3385.655 | G35: 3384.855 | H35: 0.8 | I35: 1 | J35: 1.2 | K35: 1.4 | L35: 1.6
B36: 42 | C36: 3387.255 | D36: 3386.255 | E36: 3385.255 | F36: 3384.255 | G36: 3383.255 | H36: 0.8 | I36: 1 | J36: 1.2 | K36: 1.4 | L36: 1.6
B37: 43 | C37: 3386.455 | D37: 3385.255 | E37: 3384.055 | F37: 3382.855 | G37: 3381.655 | H37: 0.8 | I37: 1 | J37: 1.2 | K37: 1.4 | L37: 1.6
B38: 44 | C38: 3385.655 | D38: 3384.255 | E38: 3382.855 | F38: 3381.455 | G38: 3380.055 | H38: 0.8 | I38: 1 | J38: 1.2 | K38: 1.4 | L38: 1.6
B39: 45 | C39: 3384.855 | D39: 3383.255 | E39: 3381.655 | F39: 3380.055 | G39: 3378.455 | H39: 0.8 | I39: 1 | J39: 1.2 | K39: 1.4 | L39: 1.6
B40: 46 | C40: 3384.055 | D40: 3382.255 | E40: 3380.455 | F40: 3378.655 | G40: 3376.855 | H40: 0.8 | I40: 1 | J40: 1.2 | K40: 1.4 | L40: 1.6
B41: 47 | C41: 3383.255 | D41: 3381.255 | E41: 3379.255 | F41: 3377.255 | G41: 3375.255 | H41: 0.8 | I41: 1 | J41: 1.2 | K41: 1.4 | L41: 1.6
B42: 48 | C42: 3382.455 | D42: 3380.255 | E42: 3378.055 | F42: 3375.855 | G42: 3373.655 | H42: 0.8 | I42: 1 | J42: 1.2 | K42: 1.4 | L42: 1.6
B43: 49 | C43: 3381.655 | D43: 3379.255 | E43: 3376.855 | F43: 3374.455 | G43: 3372.055 | H43: 0.8 | I43: 1 | J43: 1.2 | K43: 1.4 | L43: 1.6
B44: 50 | C44: 3380.855 | D44: 3378.255 | E44: 3375.655 | F44: 3373.055 | G44: 3370.455 | H44: 0.8 | I44: 1 | J44: 1.2 | K44: 1.4 | L44: 1.6
B45: 51 | C45: 3380.055 | D45: 3377.255 | E45: 3374.455 | F45: 3371.655 | G45: 3368.855 | H45: 0.8 | I45: 1 | J45: 1.2 | K45: 1.4 | L45: 1.6
B46: 52 | C46: 3379.255 | D46: 3376.255 | E46: 3373.255 | F46: 3370.255 | G46: 3367.255 | H46: 0.8 | I46: 1 | J46: 1.2 | K46: 1.4 | L46: 1.6
B47: 53 | C47: 3378.455 | D47: 3375.255 | E47: 3372.055 | F47: 3368.855 | G47: 3365.655 | H47: 0.8 | I47: 1 | J47: 1.2 | K47: 1.4 | L47: 1.6
B48: 54 | C48: 3377.655 | D48: 3374.255 | E48: 3370.855 | F48: 3367.455 | G48: 3364.055 | H48: 0.8 | I48: 1 | J48: 1.2 | K48: 1.4 | L48: 1.6
B49: 55 | C49: 3376.855 | D49: 3373.255 | E49: 3369.655 | F49: 3366.055 | G49: 3362.455 | H49: 0.8 | I49: 1 | J49: 1.2 | K49: 1.4 | L49: 1.6
B50: 56 | C50: 3376.055 | D50: 3372.255 | E50: 3368.455 | F50: 3364.655 | G50: 3360.855 | H50: 0.8 | I50: 1 | J50: 1.2 | K50: 1.4 | L50: 1.6
B51: 57 | C51: 3375.255 | D51: 3371.255 | E51: 3367.255 | F51: 3363.255 | G51: 3359.255 | H51: 0.8 | I51: 1 | J51: 1.2 | K51: 1.4 | L51: 1.6
B52: 58 | C52: 3374.455 | D52: 3370.255 | E52: 3366.055 | F52: 3361.855 | G52: 3357.655 | H52: 0.8 | I52: 1 | J52: 1.2 | K52: 1.4 | L52: 1.6
B53: 59 | C53: 3373.655 | D53: 3369.255 | E53: 3364.855 | F53: 3360.455 | G53: 3356.055 | H53: 0.8 | I53: 1 | J53: 1.2 | K53: 1.4 | L53: 1.6
B54: 60 | C54: 3372.855 | D54: 3368.255 | E54: 3363.655 | F54: 3359.055 | G54: 3354.455 | H54: 0.8 | I54: 1 | J54: 1.2 | K54: 1.4 | L54: 1.6
B55: 61 | C55: 3372.055 | D55: 3367.255 | E55: 3362.455 | F55: 3357.655 | G55: 3352.855 | H55: 0.8 | I55: 1 | J55: 1.2 | K55: 1.4 | L55: 1.6
B56: 62 | C56: 3371.255 | D56: 3366.255 | E56: 3361.255 | F56: 3356.255 | G56: 3351.255 | H56: 0.8 | I56: 1 | J56: 1.2 | K56: 1.4 | L56: 1.6
B57: 63 | C57: 3370.455 | D57: 3365.255 | E57: 3360.055 | F57: 3354.855 | G57: 3349.655 | H57: 0.8 | I57: 1 | J57: 1.2 | K57: 1.4 | L57: 1.6
B58: 64 | C58: 3369.655 | D58: 3364.255 | E58: 3358.855 | F58: 3353.455 | G58: 3348.055 | H58: 0.8 | I58: 1 | J58: 1.2 | K58: 1.4 | L58: 1.6
B59: 65 | C59: 3368.855 | D59: 3363.255 | E59: 3357.655 | F59: 3352.055 | G59: 3346.455 | H59: 0.8 | I59: 1 | J59: 1.2 | K59: 1.4 | L59: 1.6
B60: 66 | C60: 3368.055 | D60: 3362.255 | E60: 3356.455 | F60: 3350.655 | G60: 3344.855 | H60: 0.8 | I60: 1 | J60: 1.2 | K60: 1.4 | L60: 1.6
B61: 67 | C61: 3367.255 | D61: 3361.255 | E61: 3355.255 | F61: 3349.255 | G61: 3343.255 | H61: 0.8 | I61: 1 | J61: 1.2 | K61: 1.4 | L61: 1.6
B62: 68 | C62: 3366.455 | D62: 3360.255 | E62: 3354.055 | F62: 3347.855 | G62: 3341.655 | H62: 0.8 | I62: 1 | J62: 1.2 | K62: 1.4 | L62: 1.6
B63: 69 | C63: 3365.655 | D63: 3359.255 | E63: 3352.855 | F63: 3346.455 | G63: 3340.055 | H63: 0.8 | I63: 1 | J63: 1.2 | K63: 1.4 | L63: 1.6
B64: 70 | C64: 3364.855 | D64: 3358.255 | E64: 3351.655 | F64: 3345.055 | G64: 3338.455 | H64: 0.8 | I64: 1 | J64: 1.2 | K64: 1.4 | L64: 1.6
B65: 71 | C65: 3363.555 | D65: 3356.63 | E65: 3349.705 | F65: 3342.78 | G65: 3335.855 | H65: 1.3 | I65: 1.625 | J65: 1.95 | K65: 2.275 | L65: 2.6 | M65: Começa a reduzir volume do grupo de espécie mais valiosas (120)
B66: 72 | C66: 3362.255 | D66: 3355.005 | E66: 3347.755 | F66: 3340.505 | G66: 3333.255 | H66: 1.3 | I66: 1.625 | J66: 1.95 | K66: 2.275 | L66: 2.6
B67: 73 | C67: 3360.955 | D67: 3353.38 | E67: 3345.805 | F67: 3338.23 | G67: 3330.655 | H67: 1.3 | I67: 1.625 | J67: 1.95 | K67: 2.275 | L67: 2.6
B68: 74 | C68: 3359.655 | D68: 3351.755 | E68: 3343.855 | F68: 3335.955 | G68: 3328.055 | H68: 1.3 | I68: 1.625 | J68: 1.95 | K68: 2.275 | L68: 2.6
B69: 75 | C69: 3358.355 | D69: 3350.13 | E69: 3341.905 | F69: 3333.68 | G69: 3325.455 | H69: 1.3 | I69: 1.625 | J69: 1.95 | K69: 2.275 | L69: 2.6
B70: 76 | C70: 3357.055 | D70: 3348.505 | E70: 3339.955 | F70: 3331.405 | G70: 3322.855 | H70: 1.3 | I70: 1.625 | J70: 1.95 | K70: 2.275 | L70: 2.6
B71: 77 | C71: 3355.755 | D71: 3346.88 | E71: 3338.005 | F71: 3329.13 | G71: 3320.255 | H71: 1.3 | I71: 1.625 | J71: 1.95 | K71: 2.275 | L71: 2.6
B72: 78 | C72: 3354.455 | D72: 3345.255 | E72: 3336.055 | F72: 3326.855 | G72: 3317.655 | H72: 1.3 | I72: 1.625 | J72: 1.95 | K72: 2.275 | L72: 2.6
B73: 79 | C73: 3353.155 | D73: 3343.63 | E73: 3334.105 | F73: 3324.58 | G73: 3315.055 | H73: 1.3 | I73: 1.625 | J73: 1.95 | K73: 2.275 | L73: 2.6
B74: 80 | C74: 3351.855 | D74: 3342.005 | E74: 3332.155 | F74: 3322.305 | G74: 3312.455 | H74: 1.3 | I74: 1.625 | J74: 1.95 | K74: 2.275 | L74: 2.6
B75: 81 | C75: 3350.555 | D75: 3340.38 | E75: 3330.205 | F75: 3320.03 | G75: 3309.855 | H75: 1.3 | I75: 1.625 | J75: 1.95 | K75: 2.275 | L75: 2.6
B76: 82 | C76: 3349.255 | D76: 3338.755 | E76: 3328.255 | F76: 3317.755 | G76: 3307.255 | H76: 1.3 | I76: 1.625 | J76: 1.95 | K76: 2.275 | L76: 2.6
B77: 83 | C77: 3347.955 | D77: 3337.13 | E77: 3326.305 | F77: 3315.48 | G77: 3304.655 | H77: 1.3 | I77: 1.625 | J77: 1.95 | K77: 2.275 | L77: 2.6
B78: 84 | C78: 3346.655 | D78: 3335.505 | E78: 3324.355 | F78: 3313.205 | G78: 3302.055 | H78: 1.3 | I78: 1.625 | J78: 1.95 | K78: 2.275 | L78: 2.6
B79: 85 | C79: 3345.355 | D79: 3333.88 | E79: 3322.405 | F79: 3310.93 | G79: 3299.455 | H79: 1.3 | I79: 1.625 | J79: 1.95 | K79: 2.275 | L79: 2.6
B80: 86 | C80: 3344.055 | D80: 3332.255 | E80: 3320.455 | F80: 3308.655 | G80: 3296.855 | H80: 1.3 | I80: 1.625 | J80: 1.95 | K80: 2.275 | L80: 2.6
B81: 87 | C81: 3342.755 | D81: 3330.63 | E81: 3318.505 | F81: 3306.38 | G81: 3294.255 | H81: 1.3 | I81: 1.625 | J81: 1.95 | K81: 2.275 | L81: 2.6
B82: 88 | C82: 3341.455 | D82: 3329.005 | E82: 3316.555 | F82: 3304.105 | G82: 3291.655 | H82: 1.3 | I82: 1.625 | J82: 1.95 | K82: 2.275 | L82: 2.6
B83: 89 | C83: 3340.155 | D83: 3327.38 | E83: 3314.605 | F83: 3301.83 | G83: 3289.055 | H83: 1.3 | I83: 1.625 | J83: 1.95 | K83: 2.275 | L83: 2.6
B84: 90 | C84: 3338.855 | D84: 3325.755 | E84: 3312.655 | F84: 3299.555 | G84: 3286.455 | H84: 1.3 | I84: 1.625 | J84: 1.95 | K84: 2.275 | L84: 2.6
B85: 91 | C85: 3337.555 | D85: 3324.13 | E85: 3310.705 | F85: 3297.28 | G85: 3283.855 | H85: 1.3 | I85: 1.625 | J85: 1.95 | K85: 2.275 | L85: 2.6
B86: 92 | C86: 3336.255 | D86: 3322.505 | E86: 3308.755 | F86: 3295.005 | G86: 3281.255 | H86: 1.3 | I86: 1.625 | J86: 1.95 | K86: 2.275 | L86: 2.6
B87: 93 | C87: 3334.955 | D87: 3320.88 | E87: 3306.805 | F87: 3292.73 | G87: 3278.655 | H87: 1.3 | I87: 1.625 | J87: 1.95 | K87: 2.275 | L87: 2.6
B88: 94 | C88: 3333.655 | D88: 3319.255 | E88: 3304.855 | F88: 3290.455 | G88: 3276.055 | H88: 1.3 | I88: 1.625 | J88: 1.95 | K88: 2.275 | L88: 2.6
B89: 95 | C89: 3332.355 | D89: 3317.63 | E89: 3302.905 | F89: 3288.18 | G89: 3273.455 | H89: 1.3 | I89: 1.625 | J89: 1.95 | K89: 2.275 | L89: 2.6
B90: 96 | C90: 3331.055 | D90: 3316.005 | E90: 3300.955 | F90: 3285.905 | G90: 3270.855 | H90: 1.3 | I90: 1.625 | J90: 1.95 | K90: 2.275 | L90: 2.6
B91: 97 | C91: 3329.755 | D91: 3314.38 | E91: 3299.005 | F91: 3283.63 | G91: 3268.255 | H91: 1.3 | I91: 1.625 | J91: 1.95 | K91: 2.275 | L91: 2.6
H93: =G91/C3 -> 0.9637302415 | I93: =1-H93 -> 0.03626975854

Sheet UMF3
A1: Área UMF1: | B1: 18600
B2: # de espécies | C2: 20 m3 | D2: 25 m3 | E2: 30 m3 | F2: 35 m3 | G2: 40 m3
B3: 9 | C3: 3391.255 | D3: 3391.255 | E3: 3391.255 | F3: 3391.255 | G3: 3389.356812
A4: =B1/30 -> 620 | B4: 10 | C4: 3391.255 | D4: 3391.255 | E4: 3391.255 | F4: 3391.255 | G4: 3389.356813
B5: 11 | C5: 3391.255 | D5: 3391.255 | E5: 3391.255 | F5: 3391.255 | G5: 3389.356812
B6: 12 | C6: 3391.255 | D6: 3391.255 | E6: 3391.255 | F6: 3391.255 | G6: 3389.356812
B7: 13 | C7: 3391.255 | D7: 3391.255 | E7: 3391.255 | F7: 3391.255 | G7: 3389.356812
B8: 14 | C8: 3391.255 | D8: 3391.255 | E8: 3391.255 | F8: 3391.255 | G8: 3389.356812
B9: 15 | C9: 3391.255 | D9: 3391.255 | E9: 3391.255 | F9: 3391.255 | G9: 3389.356812
B10: 16 | C10: 3391.255 | D10: 3391.255 | E10: 3391.255 | F10: 3391.255 | G10: 3389.356812
B11: 17 | C11: 3391.255 | D11: 3391.255 | E11: 3391.255 | F11: 3391.255 | G11: 3389.356812
B12: 18 | C12: 3391.255 | D12: 3391.255 | E12: 3391.255 | F12: 3391.255 | G12: 3389.356812
B13: 19 | C13: 3391.255 | D13: 3391.255 | E13: 3391.255 | F13: 3391.255 | G13: 3389.356812
B14: 20 | C14: 3391.255 | D14: 3391.255 | E14: 3391.255 | F14: 3391.255 | G14: 3389.356812
B15: 21 | C15: 3391.255 | D15: 3391.255 | E15: 3391.255 | F15: 3391.255 | G15: 3389.356812
B16: 22 | C16: 3391.255 | D16: 3391.255 | E16: 3391.255 | F16: 3391.255 | G16: 3389.356812
B17: 23 | C17: 3391.255 | D17: 3391.255 | E17: 3391.255 | F17: 3391.255 | G17: 3389.356812
B18: 24 | C18: 3391.255 | D18: 3391.255 | E18: 3391.255 | F18: 3391.255 | G18: 3389.356812
B19: 25 | C19: 3391.255 | D19: 3391.255 | E19: 3391.255 | F19: 3391.255 | G19: 3389.356812
B20: 26 | C20: 3391.255 | D20: 3391.255 | E20: 3391.255 | F20: 3391.255 | G20: 3389.356812
B21: 27 | C21: 3391.255 | D21: 3391.255 | E21: 3391.255 | F21: 3391.255 | G21: 3389.356813
B22: 28 | C22: 3391.255 | D22: 3391.255 | E22: 3391.255 | F22: 3391.255 | G22: 3389.356812
B23: 29 | C23: 3391.255 | D23: 3391.255 | E23: 3391.255 | F23: 3391.255 | G23: 3389.356812
B24: 30 | C24: 3391.255 | D24: 3391.255 | E24: 3391.255 | F24: 3391.255 | G24: 3389.356812
B25: 31 | C25: 3391.255 | D25: 3391.255 | E25: 3391.255 | F25: 3391.255 | G25: 3389.356812
B26: 32 | C26: 3391.255 | D26: 3391.255 | E26: 3391.255 | F26: 3391.255 | G26: 3389.356812
B27: 33 | C27: 3391.255 | D27: 3391.255 | E27: 3391.255 | F27: 3391.255 | G27: 3389.356812
B28: 34 | C28: 3391.255 | D28: 3391.255 | E28: 3391.255 | F28: 3391.255 | G28: 3389.356812
B29: 35 | C29: 3391.255 | D29: 3391.255 | E29: 3391.255 | F29: 3391.255 | G29: 3386.776167 | L29: =G28-G29 -> 2.580645161
B30: 36 | C30: 3391.255 | D30: 3391.255 | E30: 3391.255 | F30: 3391.255 | G30: 3384.195522 | L30: =G29-G30 -> 2.580645161
B31: 37 | C31: 3391.255 | D31: 3391.255 | E31: 3391.255 | F31: 3388.996935 | G31: 3381.614877 | K31: =F30-F31 -> 2.258064516 | L31: 2.580645161
B32: 38 | C32: 3389.964677 | D32: 3389.642097 | E32: 3389.319516 | F32: 3386.738871 | G32: 3379.034232 | H32: =C31-C32 -> 1.290322581 | I32: =D31-D32 -> 1.612903226 | J32: =E31-E32 -> 1.935483871 | K32: 2.258064516 | L32: 2.580645161
B33: 39 | C33: 3388.674355 | D33: 3388.029194 | E33: 3387.384032 | F33: 3384.480806 | G33: 3376.453587 | H33: 1.290322581 | I33: 1.612903226 | J33: 1.935483871 | K33: 2.258064516 | L33: 2.580645161
B34: 40 | C34: 3387.384032 | D34: 3386.41629 | E34: 3385.448548 | F34: 3382.222742 | G34: 3373.872942 | H34: 1.290322581 | I34: 1.612903226 | J34: 1.935483871 | K34: 2.258064516 | L34: 2.580645161
B35: 41 | C35: 3386.09371 | D35: 3384.803387 | E35: 3383.513065 | F35: 3379.964677 | G35: 3371.292296 | H35: 1.290322581 | I35: 1.612903226 | J35: 1.935483871 | K35: 2.258064516 | L35: 2.580645161
B36: 42 | C36: 3384.803387 | D36: 3383.190484 | E36: 3381.577581 | F36: 3377.706613 | G36: 3368.711651 | H36: 1.290322581 | I36: 1.612903226 | J36: 1.935483871 | K36: 2.258064516 | L36: 2.580645161
B37: 43 | C37: 3383.513065 | D37: 3381.577581 | E37: 3379.642097 | F37: 3375.448548 | G37: 3366.131006 | H37: 1.290322581 | I37: 1.612903226 | J37: 1.935483871 | K37: 2.258064516 | L37: 2.580645161
B38: 44 | C38: 3382.222742 | D38: 3379.964677 | E38: 3377.706613 | F38: 3373.190484 | G38: 3363.550361 | H38: 1.290322581 | I38: 1.612903226 | J38: 1.935483871 | K38: 2.258064516 | L38: 2.580645161
B39: 45 | C39: 3380.932419 | D39: 3378.351774 | E39: 3375.771129 | F39: 3370.932419 | G39: 3360.969716 | H39: 1.290322581 | I39: 1.612903226 | J39: 1.935483871 | K39: 2.258064516 | L39: 2.580645161
B40: 46 | C40: 3379.642097 | D40: 3376.738871 | E40: 3373.835645 | F40: 3368.674355 | G40: 3358.389071 | H40: 1.290322581 | I40: 1.612903226 | J40: 1.935483871 | K40: 2.258064516 | L40: 2.580645161
B41: 47 | C41: 3378.351774 | D41: 3375.125968 | E41: 3371.900161 | F41: 3366.41629 | G41: 3355.808425 | H41: 1.290322581 | I41: 1.612903226 | J41: 1.935483871 | K41: 2.258064516 | L41: 2.580645161
B42: 48 | C42: 3377.061452 | D42: 3373.513065 | E42: 3369.964677 | F42: 3364.158226 | G42: 3353.22778 | H42: 1.290322581 | I42: 1.612903226 | J42: 1.935483871 | K42: 2.258064516 | L42: 2.580645161
B43: 49 | C43: 3375.771129 | D43: 3371.900161 | E43: 3368.029194 | F43: 3361.900161 | G43: 3350.647135 | H43: 1.290322581 | I43: 1.612903226 | J43: 1.935483871 | K43: 2.258064516 | L43: 2.580645161
B44: 50 | C44: 3374.480806 | D44: 3370.287258 | E44: 3366.09371 | F44: 3359.642097 | G44: 3348.06649 | H44: 1.290322581 | I44: 1.612903226 | J44: 1.935483871 | K44: 2.258064516 | L44: 2.580645161
B45: 51 | C45: 3373.190484 | D45: 3368.674355 | E45: 3364.158226 | F45: 3357.384032 | G45: 3345.485845 | H45: 1.290322581 | I45: 1.612903226 | J45: 1.935483871 | K45: 2.258064516 | L45: 2.580645161
B46: 52 | C46: 3371.900161 | D46: 3367.061452 | E46: 3362.222742 | F46: 3355.125968 | G46: 3342.9052 | H46: 1.290322581 | I46: 1.612903226 | J46: 1.935483871 | K46: 2.258064516 | L46: 2.580645161
B47: 53 | C47: 3370.609839 | D47: 3365.448548 | E47: 3360.287258 | F47: 3352.867903 | G47: 3340.324554 | H47: 1.290322581 | I47: 1.612903226 | J47: 1.935483871 | K47: 2.258064516 | L47: 2.580645161
B48: 54 | C48: 3369.319516 | D48: 3363.835645 | E48: 3358.351774 | F48: 3350.609839 | G48: 3337.743909 | H48: 1.290322581 | I48: 1.612903226 | J48: 1.935483871 | K48: 2.258064516 | L48: 2.580645161
B49: 55 | C49: 3368.029194 | D49: 3362.222742 | E49: 3356.41629 | F49: 3348.351774 | G49: 3335.163264 | H49: 1.290322581 | I49: 1.612903226 | J49: 1.935483871 | K49: 2.258064516 | L49: 2.580645161
B50: 56 | C50: 3366.738871 | D50: 3360.609839 | E50: 3354.480806 | F50: 3346.09371 | G50: 3332.582619 | H50: 1.290322581 | I50: 1.612903226 | J50: 1.935483871 | K50: 2.258064516 | L50: 2.580645161
B51: 57 | C51: 3365.448548 | D51: 3358.996935 | E51: 3352.545323 | F51: 3343.835645 | G51: 3330.001974 | H51: 1.290322581 | I51: 1.612903226 | J51: 1.935483871 | K51: 2.258064516 | L51: 2.580645161
B52: 58 | C52: 3364.158226 | D52: 3357.384032 | E52: 3350.609839 | F52: 3341.577581 | G52: 3327.421329 | H52: 1.290322581 | I52: 1.612903226 | J52: 1.935483871 | K52: 2.258064516 | L52: 2.580645161
B53: 59 | C53: 3362.867903 | D53: 3355.771129 | E53: 3348.674355 | F53: 3339.319516 | G53: 3324.840683 | H53: 1.290322581 | I53: 1.612903226 | J53: 1.935483871 | K53: 2.258064516 | L53: 2.580645161
B54: 60 | C54: 3361.577581 | D54: 3354.158226 | E54: 3346.738871 | F54: 3337.061452 | G54: 3322.260038 | H54: 1.290322581 | I54: 1.612903226 | J54: 1.935483871 | K54: 2.258064516 | L54: 2.580645161
B55: 61 | C55: 3360.287258 | D55: 3352.545323 | E55: 3344.803387 | F55: 3334.803387 | G55: 3319.679393 | H55: 1.290322581 | I55: 1.612903226 | J55: 1.935483871 | K55: 2.258064516 | L55: 2.580645161
B56: 62 | C56: 3358.996935 | D56: 3350.932419 | E56: 3342.867903 | F56: 3332.545323 | G56: 3317.098748 | H56: 1.290322581 | I56: 1.612903226 | J56: 1.935483871 | K56: 2.258064516 | L56: 2.580645161
B57: 63 | C57: 3357.706613 | D57: 3349.319516 | E57: 3340.932419 | F57: 3330.287258 | G57: 3314.518103 | H57: 1.290322581 | I57: 1.612903226 | J57: 1.935483871 | K57: 2.258064516 | L57: 2.580645161
B58: 64 | C58: 3356.41629 | D58: 3347.706613 | E58: 3338.996935 | F58: 3328.029194 | G58: 3311.937458 | H58: 1.290322581 | I58: 1.612903226 | J58: 1.935483871 | K58: 2.258064516 | L58: 2.580645161
B59: 65 | C59: 3355.125968 | D59: 3346.09371 | E59: 3337.061452 | F59: 3325.771129 | G59: 3309.356812 | H59: 1.290322581 | I59: 1.612903226 | J59: 1.935483871 | K59: 2.258064516 | L59: 2.580645161
B60: 66 | C60: 3353.835645 | D60: 3344.480806 | E60: 3335.125968 | F60: 3323.513065 | G60: 3306.776167 | H60: 1.290322581 | I60: 1.612903226 | J60: 1.935483871 | K60: 2.258064516 | L60: 2.580645161
B61: 67 | C61: 3352.545323 | D61: 3342.867903 | E61: 3333.190484 | F61: 3321.255 | G61: 3304.195522 | H61: 1.290322581 | I61: 1.612903226 | J61: 1.935483871 | K61: 2.258064516 | L61: 2.580645161
B62: 68 | C62: 3351.255 | D62: 3341.255 | E62: 3331.255 | F62: 3318.996935 | G62: 3300.001974 | H62: 1.290322581 | I62: 1.612903226 | J62: 1.935483871 | K62: 2.258064516 | L62: 4.193548387
B63: 69 | C63: 3349.964677 | D63: 3339.642097 | E63: 3329.319516 | F63: 3316.738871 | G63: 3295.808425 | H63: 1.290322581 | I63: 1.612903226 | J63: 1.935483871 | K63: 2.258064516 | L63: 4.193548387
B64: 70 | C64: 3348.674355 | D64: 3338.029194 | E64: 3327.384032 | F64: 3313.069516 | G64: 3291.614877 | H64: 1.290322581 | I64: 1.612903226 | J64: 1.935483871 | K64: 3.669354839 | L64: 4.193548387
B65: 71 | C65: 3346.577581 | D65: 3335.408226 | E65: 3324.238871 | F65: 3309.400161 | G65: 3287.421329 | H65: 2.096774194 | I65: 2.620967742 | J65: 3.14516129 | K65: 3.669354839 | L65: 4.193548387
B66: 72 | C66: 3344.480806 | D66: 3332.787258 | E66: 3321.09371 | F66: 3305.730806 | G66: 3283.22778 | H66: 2.096774194 | I66: 2.620967742 | J66: 3.14516129 | K66: 3.669354839 | L66: 4.193548387
B67: 73 | C67: 3342.384032 | D67: 3330.16629 | E67: 3317.948548 | F67: 3302.061452 | G67: 3279.034232 | H67: 2.096774194 | I67: 2.620967742 | J67: 3.14516129 | K67: 3.669354839 | L67: 4.193548387
B68: 74 | C68: 3340.287258 | D68: 3327.545323 | E68: 3314.803387 | F68: 3298.392097 | G68: 3274.840683 | H68: 2.096774194 | I68: 2.620967742 | J68: 3.14516129 | K68: 3.669354839 | L68: 4.193548387
B69: 75 | C69: 3338.190484 | D69: 3324.924355 | E69: 3311.658226 | F69: 3294.722742 | G69: 3270.647135 | H69: 2.096774194 | I69: 2.620967742 | J69: 3.14516129 | K69: 3.669354839 | L69: 4.193548387
B70: 76 | C70: 3336.09371 | D70: 3322.303387 | E70: 3308.513065 | F70: 3291.053387 | G70: 3266.453587 | H70: 2.096774194 | I70: 2.620967742 | J70: 3.14516129 | K70: 3.669354839 | L70: 4.193548387
B71: 77 | C71: 3333.996935 | D71: 3319.682419 | E71: 3305.367903 | F71: 3287.384032 | G71: 3262.260038 | H71: 2.096774194 | I71: 2.620967742 | J71: 3.14516129 | K71: 3.669354839 | L71: 4.193548387
B72: 78 | C72: 3331.900161 | D72: 3317.061452 | E72: 3302.222742 | F72: 3283.714677 | G72: 3258.06649 | H72: 2.096774194 | I72: 2.620967742 | J72: 3.14516129 | K72: 3.669354839 | L72: 4.193548387
B73: 79 | C73: 3329.803387 | D73: 3314.440484 | E73: 3299.077581 | F73: 3280.045323 | G73: 3253.872942 | H73: 2.096774194 | I73: 2.620967742 | J73: 3.14516129 | K73: 3.669354839 | L73: 4.193548387
B74: 80 | C74: 3327.706613 | D74: 3311.819516 | E74: 3295.932419 | F74: 3276.375968 | G74: 3249.679393 | H74: 2.096774194 | I74: 2.620967742 | J74: 3.14516129 | K74: 3.669354839 | L74: 4.193548387
B75: 81 | C75: 3325.609839 | D75: 3309.198548 | E75: 3292.787258 | F75: 3272.706613 | G75: 3245.485845 | H75: 2.096774194 | I75: 2.620967742 | J75: 3.14516129 | K75: 3.669354839 | L75: 4.193548387
B76: 82 | C76: 3323.513065 | D76: 3306.577581 | E76: 3289.642097 | F76: 3269.037258 | G76: 3241.292296 | H76: 2.096774194 | I76: 2.620967742 | J76: 3.14516129 | K76: 3.669354839 | L76: 4.193548387
B77: 83 | C77: 3321.41629 | D77: 3303.956613 | E77: 3286.496935 | F77: 3265.367903 | G77: 3237.098748 | H77: 2.096774194 | I77: 2.620967742 | J77: 3.14516129 | K77: 3.669354839 | L77: 4.193548387
B78: 84 | C78: 3319.319516 | D78: 3301.335645 | E78: 3283.351774 | F78: 3261.698548 | G78: 3232.9052 | H78: 2.096774194 | I78: 2.620967742 | J78: 3.14516129 | K78: 3.669354839 | L78: 4.193548387
B79: 85 | C79: 3317.222742 | D79: 3298.714677 | E79: 3280.206613 | F79: 3258.029194 | G79: 3228.711651 | H79: 2.096774194 | I79: 2.620967742 | J79: 3.14516129 | K79: 3.669354839 | L79: 4.193548387
B80: 86 | C80: 3315.125968 | D80: 3296.09371 | E80: 3277.061452 | F80: 3254.359839 | G80: 3224.518103 | H80: 2.096774194 | I80: 2.620967742 | J80: 3.14516129 | K80: 3.669354839 | L80: 4.193548387
B81: 87 | C81: 3313.029194 | D81: 3293.472742 | E81: 3273.91629 | F81: 3250.690484 | G81: 3220.324554 | H81: 2.096774194 | I81: 2.620967742 | J81: 3.14516129 | K81: 3.669354839 | L81: 4.193548387
B82: 88 | C82: 3310.932419 | D82: 3290.851774 | E82: 3270.771129 | F82: 3247.021129 | G82: 3216.131006 | H82: 2.096774194 | I82: 2.620967742 | J82: 3.14516129 | K82: 3.669354839 | L82: 4.193548387
B83: 89 | C83: 3308.835645 | D83: 3288.230806 | E83: 3267.625968 | F83: 3243.351774 | G83: 3211.937458 | H83: 2.096774194 | I83: 2.620967742 | J83: 3.14516129 | K83: 3.669354839 | L83: 4.193548387
B84: 90 | C84: 3306.738871 | D84: 3285.609839 | E84: 3264.480806 | F84: 3239.682419 | G84: 3207.743909 | H84: 2.096774194 | I84: 2.620967742 | J84: 3.14516129 | K84: 3.669354839 | L84: 4.193548387
B85: 91 | C85: 3304.642097 | D85: 3282.988871 | E85: 3261.335645 | F85: 3236.013065 | G85: 3203.550361 | H85: 2.096774194 | I85: 2.620967742 | J85: 3.14516129 | K85: 3.669354839 | L85: 4.193548387
B86: 92 | C86: 3302.545323 | D86: 3280.367903 | E86: 3258.190484 | F86: 3232.34371 | G86: 3199.356812 | H86: 2.096774194 | I86: 2.620967742 | J86: 3.14516129 | K86: 3.669354839 | L86: 4.193548387
B87: 93 | C87: 3300.448548 | D87: 3277.746935 | E87: 3255.045323 | F87: 3228.674355 | G87: 3195.163264 | H87: 2.096774194 | I87: 2.620967742 | J87: 3.14516129 | K87: 3.669354839 | L87: 4.193548387
B88: 94 | C88: 3298.351774 | D88: 3275.125968 | E88: 3251.900161 | F88: 3225.005 | G88: 3190.969716 | H88: 2.096774194 | I88: 2.620967742 | J88: 3.14516129 | K88: 3.669354839 | L88: 4.193548387
B89: 95 | C89: 3296.255 | D89: 3272.505 | E89: 3248.755 | F89: 3221.335645 | H89: 2.096774194 | I89: 2.620967742 | J89: 3.14516129 | K89: 3.669354839
B90: 96 | C90: 3294.158226 | D90: 3269.884032 | E90: 3245.609839 | F90: 3217.66629 | H90: 2.096774194 | I90: 2.620967742 | J90: 3.14516129 | K90: 3.669354839
B91: 97 | C91: 3292.061452 | D91: 3267.263065 | E91: 3242.464677 | H91: 2.096774194 | I91: 2.620967742 | J91: 3.14516129
H93: =G88/C3 -> 0.9409406594 | I93: =1-H93 -> 0.05905934065

Sheet Simulações_Percentagem
B2: # de espécies | C2: 0.02 | D2: 0.015 | E2: 0.01 | F2: 0.005 | G2: 0
B3: 9 | C3: 3389.356812 | D3: 3389.356813 | E3: 3389.356812 | F3: 3389.356813 | G3: 3391.255
B4: 10 | C4: 3389.356812 | D4: 3389.356813 | E4: 3389.356812 | F4: 3389.356813 | G4: 3391.255
B5: 11 | C5: 3389.356813 | D5: 3389.356813 | E5: 3389.356812 | F5: 3389.356813 | G5: 3391.255
B6: 12 | C6: 3389.356813 | D6: 3389.356813 | E6: 3389.356812 | F6: 3389.356813 | G6: 3391.255
B7: 13 | C7: 3389.356813 | D7: 3389.356813 | E7: 3389.356812 | F7: 3389.356813 | G7: 3391.255
B8: 14 | C8: 3389.356813 | D8: 3389.356813 | E8: 3389.356812 | F8: 3389.356813 | G8: 3391.255
B9: 15 | C9: 3389.356813 | D9: 3389.356813 | E9: 3389.356812 | F9: 3389.356813 | G9: 3391.255
B10: 16 | C10: 3389.356813 | D10: 3389.356813 | E10: 3389.356812 | F10: 3389.356813 | G10: 3391.255
B11: 17 | C11: 3389.356813 | D11: 3389.356813 | E11: 3389.356812 | F11: 3389.356813 | G11: 3391.255
B12: 18 | C12: 3384 | D12: 3389.356813 | E12: 3389.356812 | F12: 3389.356813 | G12: 3391.255
B13: 19 | C13: 3342 | D13: 3371.356813 | E13: 3389.356812 | F13: 3389.356813 | G13: 3391.255
B14: 20 | C14: 3300 | D14: 3353.356813 | E14: 3389.356812 | F14: 3389.356813 | G14: 3391.255
B15: 21 | C15: 3258 | D15: 3335.356813 | E15: 3389.356812 | F15: 3389.356813 | G15: 3391.255
B16: 22 | C16: 3216 | D16: 3312 | E16: 3377.356812 | F16: 3389.356813 | G16: 3391.255
B17: 23 | C17: 3174 | D17: 3280.5 | E17: 3365.356812 | F17: 3389.356813 | G17: 3391.255
B18: 24 | C18: 3132 | D18: 3249 | E18: 3353.356812 | F18: 3389.356813 | G18: 3391.255
B19: 25 | C19: 3090 | D19: 3217.5 | E19: 3341.356812 | F19: 3389.356813 | G19: 3391.255
B20: 26 | C20: 3048 | D20: 3186 | E20: 3329.356812 | F20: 3389.356813 | G20: 3391.255
B21: 27 | C21: 3006 | D21: 3154.5 | E21: 3317.356812 | F21: 3389.356813 | G21: 3391.255
B22: 28 | C22: 2964 | D22: 3123 | E22: 3305.356812 | F22: 3383.356813 | G22: 3391.255
B23: 29 | C23: 2922 | D23: 3091.5 | E23: 3293.356812 | F23: 3377.356813 | G23: 3391.255
B24: 30 | C24: 2880 | D24: 3060 | E24: 3276 | F24: 3371.356813 | G24: 3391.255
B25: 31 | C25: 2838 | D25: 3028.5 | E25: 3255 | F25: 3365.356813 | G25: 3391.255
B26: 32 | C26: 2796 | D26: 2997 | E26: 3234 | F26: 3359.356813 | G26: 3391.255
B27: 33 | C27: 2754 | D27: 2965.5 | E27: 3213 | F27: 3353.356813 | G27: 3391.255
B28: 34 | C28: 2712 | D28: 2934 | E28: 3192 | F28: 3347.356813 | G28: 3391.255
B29: 35 | C29: 2670 | D29: 2902.5 | E29: 3171 | F29: 3341.356813 | G29: 3391.255
B30: 36 | C30: 2628 | D30: 2871 | E30: 3150 | F30: 3335.356813 | G30: 3391.255
B31: 37 | C31: 2571 | D31: 2839.5 | E31: 3129 | F31: 3329.356813 | G31: 3391.255
B32: 38 | C32: 2514 | D32: 2808 | E32: 3108 | F32: 3323.356813 | G32: 3391.255
B33: 39 | C33: 2457 | D33: 2776.5 | E33: 3087 | F33: 3317.356813 | G33: 3391.255
B34: 40 | C34: 2400 | D34: 2733.75 | E34: 3066 | F34: 3311.356813 | G34: 3391.255
B35: 41 | C35: 2343 | D35: 2691 | E35: 3045 | F35: 3305.356813 | G35: 3391.255
B36: 42 | C36: 2286 | D36: 2648.25 | E36: 3024 | F36: 3299.356813 | G36: 3391.255
B37: 43 | C37: 2229 | D37: 2605.5 | E37: 3003 | F37: 3293.356813 | G37: 3391.255
B38: 44 | C38: 2172 | D38: 2562.75 | E38: 2982 | F38: 3287.356813 | G38: 3391.255
B39: 45 | C39: 2115 | D39: 2520 | E39: 2961 | F39: 3281.356813 | G39: 3391.255
B40: 46 | C40: 2058 | D40: 2477.25 | E40: 2940 | F40: 3275.356813 | G40: 3391.255
B41: 47 | C41: 2001 | D41: 2434.5 | E41: 2911.5 | F41: 3269.356813 | G41: 3391.255
B42: 48 | D42: 2391.75 | E42: 2883 | F42: 3263.356813 | G42: 3391.255
B43: 49 | D43: 2349 | E43: 2854.5 | F43: 3257.356813 | G43: 3391.255
B44: 50 | D44: 2306.25 | E44: 2826 | F44: 3251.356813 | G44: 3391.255
B45: 51 | D45: 2263.5 | E45: 2797.5 | F45: 3245.356813 | G45: 3391.255
B46: 52 | D46: 2220.75 | E46: 2769 | F46: 3239.356813 | G46: 3391.255
B47: 53 | D47: 2178 | E47: 2740.5 | F47: 3232.5 | G47: 3391.255
B48: 54 | D48: 2135.25 | E48: 2712 | F48: 3222 | G48: 3391.255
B49: 55 | E49: 2683.5 | F49: 3211.5 | G49: 3391.255
B50: 56 | E50: 2655 | F50: 3201 | G50: 3391.255
B51: 57 | E51: 2626.5 | F51: 3190.5 | G51: 3391.255
B52: 58 | E52: 2598 | F52: 3176.25 | G52: 3391.255
B53: 59 | E53: 2569.5 | F53: 3162 | G53: 3391.255
B54: 60 | E54: 2541 | F54: 3147.75 | G54: 3391.255
B55: 61 | E55: 2512.5 | F55: 3133.5 | G55: 3391.255
B56: 62 | E56: 2484 | F56: 3119.25 | G56: 3391.255
B57: 63 | E57: 2455.5 | F57: 3105 | G57: 3391.255
B58: 64 | E58: 2427 | F58: 3090.75 | G58: 3391.255
B59: 65 | E59: 2398.5 | F59: 3076.5 | G59: 3391.255
B60: 66 | F60: 3062.25 | G60: 3391.255
B61: 67 | F61: 3048 | G61: 3391.255
B62: 68 | F62: 3033.75 | G62: 3391.255
B63: 69 | F63: 3019.5 | G63: 3391.255
B64: 70 | F64: 3005.25 | G64: 3391.255
B65: 71 | F65: 2991 | G65: 3391.255
B66: 72 | F66: 2976.75 | G66: 3391.255
B67: 73 | F67: 2962.5 | G67: 3391.255
B68: 74 | F68: 2948.25 | G68: 3391.255
B69: 75 | F69: 2934 | G69: 3391.255
B70: 76 | F70: 2919.75 | G70: 3391.255
B71: 77 | F71: 2905.5 | G71: 3391.255
B72: 78 | F72: 2891.25 | G72: 3391.255
B73: 79 | G73: 3391.255
B74: 80 | G74: 3391.255

Sheet Gráficos
C2: Área: | D2: =Principal!G1 -> 620
B3: Grupo | C3: Vol/ha | D3: Vol da UPA por Grupo | E3: Receita Total
A4: 120 | B4: 1 | C4: =ROUND(SUM(Principal!F6:F12),2) -> 0 | D4: =C4*$D$2 -> 0 | E4: =D4*A4 -> 0
A5: 90 | B5: 2 | C5: =ROUND(SUM(Principal!F13:F42),2) -> 0 | D5: =C5*$D$2 -> 0 | E5: =D5*A5 -> 0
A6: 50 | B6: 3 | C6: =ROUND(SUM(Principal!F43:F75),2) -> 0 | D6: =C6*$D$2 -> 0 | E6: 0
A7: 25 | B7: 4 | C7: =ROUND(SUM(Principal!F76:F102),2) -> 0 | D7: =C7*$D$2 -> 0 | E7: 0
D8: =SUM(D4:D7) -> 0 | E8: =SUM(E4:E7) -> 0
D9: Total de espécies: | E9: =Principal!G4 -> 0
D10: Espécies c/ carga min: | E10: =COUNTIF(A100:A195,"=Sim") -> 0
A100: =IF(Principal!F6=Principal!$G$2/Principal!$G$1,"Sim","Não") -> Não
A101: =IF(Principal!F7=Principal!$G$2/Principal!$G$1,"Sim","Não") -> Não
A102: =IF(Principal!F8=Principal!$G$2/Principal!$G$1,"Sim","Não") -> Não
A103: =IF(Principal!F9=Principal!$G$2/Principal!$G$1,"Sim","Não") -> Não
A104: =IF(Principal!F10=Principal!$G$2/Principal!$G$1,"Sim","Não") -> Não
A105: =IF(Principal!F11=Principal!$G$2/Principal!$G$1,"Sim","Não") -> Não
A106: =IF(Principal!F12=Principal!$G$2/Principal!$G$1,"Sim","Não") -> Não
A107: =IF(Principal!F13=Principal!$G$2/Principal!$G$1,"Sim","Não") -> Não
A108: =IF(Principal!F14=Principal!$G$2/Principal!$G$1,"Sim","Não") -> Não
A109: =IF(Principal!F15=Principal!$G$2/Principal!$G$1,"Sim","Não") -> Não
A110: =IF(Principal!F16=Principal!$G$2/Principal!$G$1,"Sim","Não") -> Não
A111: =IF(Principal!F17=Principal!$G$2/Principal!$G$1,"Sim","Não") -> Não
A112: =IF(Principal!F18=Principal!$G$2/Principal!$G$1,"Sim","Não") -> Não
A113: =IF(Principal!F19=Principal!$G$2/Principal!$G$1,"Sim","Não") -> Não
A114: =IF(Principal!F20=Principal!$G$2/Principal!$G$1,"Sim","Não") -> Não
A115: =IF(Principal!F21=Principal!$G$2/Principal!$G$1,"Sim","Não") -> Não
A116: =IF(Principal!F22=Principal!$G$2/Principal!$G$1,"Sim","Não") -> Não
A117: =IF(Principal!F23=Principal!$G$2/Principal!$G$1,"Sim","Não") -> Não
A118: =IF(Principal!F24=Principal!$G$2/Principal!$G$1,"Sim","Não") -> Não
A119: =IF(Principal!F25=Principal!$G$2/Principal!$G$1,"Sim","Não") -> Não
A120: =IF(Principal!F26=Principal!$G$2/Principal!$G$1,"Sim","Não") -> Não
A121: =IF(Principal!F27=Principal!$G$2/Principal!$G$1,"Sim","Não") -> Não
A122: =IF(Principal!F28=Principal!$G$2/Principal!$G$1,"Sim","Não") -> Não
A123: =IF(Principal!F29=Principal!$G$2/Principal!$G$1,"Sim","Não") -> Não
A124: =IF(Principal!F30=Principal!$G$2/Principal!$G$1,"Sim","Não") -> Não
A125: =IF(Principal!F31=Principal!$G$2/Principal!$G$1,"Sim","Não") -> Não
A126: =IF(Principal!F32=Principal!$G$2/Principal!$G$1,"Sim","Não") -> Não
A127: =IF(Principal!F33=Principal!$G$2/Principal!$G$1,"Sim","Não") -> Não
A128: =IF(Principal!F34=Principal!$G$2/Principal!$G$1,"Sim","Não") -> Não
A129: =IF(Principal!F35=Principal!$G$2/Principal!$G$1,"Sim","Não") -> Não
A130: =IF(Principal!F36=Principal!$G$2/Principal!$G$1,"Sim","Não") -> Não
A131: =IF(Principal!F37=Principal!$G$2/Principal!$G$1,"Sim","Não") -> Não
A132: =IF(Principal!F38=Principal!$G$2/Principal!$G$1,"Sim","Não") -> Não
A133: =IF(Principal!F39=Principal!$G$2/Principal!$G$1,"Sim","Não") -> Não
A134: =IF(Principal!F40=Principal!$G$2/Principal!$G$1,"Sim","Não") -> Não
A135: =IF(Principal!F41=Principal!$G$2/Principal!$G$1,"Sim","Não") -> Não
A136: =IF(Principal!F42=Principal!$G$2/Principal!$G$1,"Sim","Não") -> Não
A137: =IF(Principal!F43=Principal!$G$2/Principal!$G$1,"Sim","Não") -> Não
A138: =IF(Principal!F44=Principal!$G$2/Principal!$G$1,"Sim","Não") -> Não
A139: =IF(Principal!F45=Principal!$G$2/Principal!$G$1,"Sim","Não") -> Não
A140: =IF(Principal!F46=Principal!$G$2/Principal!$G$1,"Sim","Não") -> Não
A141: =IF(Principal!F47=Principal!$G$2/Principal!$G$1,"Sim","Não") -> Não
A142: =IF(Principal!F48=Principal!$G$2/Principal!$G$1,"Sim","Não") -> Não
A143: =IF(Principal!F49=Principal!$G$2/Principal!$G$1,"Sim","Não") -> Não
A144: =IF(Principal!F50=Principal!$G$2/Principal!$G$1,"Sim","Não") -> Não
A145: =IF(Principal!F51=Principal!$G$2/Principal!$G$1,"Sim","Não") -> Não
A146: =IF(Principal!F52=Principal!$G$2/Principal!$G$1,"Sim","Não") -> Não
A147: =IF(Principal!F53=Principal!$G$2/Principal!$G$1,"Sim","Não") -> Não
A148: =IF(Principal!F54=Principal!$G$2/Principal!$G$1,"Sim","Não") -> Não
A149: =IF(Principal!F55=Principal!$G$2/Principal!$G$1,"Sim","Não") -> Não
A150: =IF(Principal!F56=Principal!$G$2/Principal!$G$1,"Sim","Não") -> Não
A151: =IF(Principal!F57=Principal!$G$2/Principal!$G$1,"Sim","Não") -> Não
A152: =IF(Principal!F58=Principal!$G$2/Principal!$G$1,"Sim","Não") -> Não
A153: =IF(Principal!F59=Principal!$G$2/Principal!$G$1,"Sim","Não") -> Não
A154: =IF(Principal!F60=Principal!$G$2/Principal!$G$1,"Sim","Não") -> Não
A155: =IF(Principal!F61=Principal!$G$2/Principal!$G$1,"Sim","Não") -> Não
A156: =IF(Principal!F62=Principal!$G$2/Principal!$G$1,"Sim","Não") -> Não
A157: =IF(Principal!F63=Principal!$G$2/Principal!$G$1,"Sim","Não") -> Não
A158: =IF(Principal!F64=Principal!$G$2/Principal!$G$1,"Sim","Não") -> Não
A159: =IF(Principal!F65=Principal!$G$2/Principal!$G$1,"Sim","Não") -> Não
A160: =IF(Principal!F66=Principal!$G$2/Principal!$G$1,"Sim","Não") -> Não
A161: =IF(Principal!F67=Principal!$G$2/Principal!$G$1,"Sim","Não") -> Não
A162: =IF(Principal!F68=Principal!$G$2/Principal!$G$1,"Sim","Não") -> Não
A163: =IF(Principal!F69=Principal!$G$2/Principal!$G$1,"Sim","Não") -> Não
A164: =IF(Principal!F70=Principal!$G$2/Principal!$G$1,"Sim","Não") -> Não
A165: =IF(Principal!F71=Principal!$G$2/Principal!$G$1,"Sim","Não") -> Não
A166: =IF(Principal!F72=Principal!$G$2/Principal!$G$1,"Sim","Não") -> Não
A167: =IF(Principal!F73=Principal!$G$2/Principal!$G$1,"Sim","Não") -> Não
A168: =IF(Principal!F74=Principal!$G$2/Principal!$G$1,"Sim","Não") -> Não
A169: =IF(Principal!F75=Principal!$G$2/Principal!$G$1,"Sim","Não") -> Não
A170: =IF(Principal!F76=Principal!$G$2/Principal!$G$1,"Sim","Não") -> Não
A171: =IF(Principal!F77=Principal!$G$2/Principal!$G$1,"Sim","Não") -> Não
A172: =IF(Principal!F78=Principal!$G$2/Principal!$G$1,"Sim","Não") -> Não
A173: =IF(Principal!F79=Principal!$G$2/Principal!$G$1,"Sim","Não") -> Não
A174: =IF(Principal!F80=Principal!$G$2/Principal!$G$1,"Sim","Não") -> Não
A175: =IF(Principal!F81=Principal!$G$2/Principal!$G$1,"Sim","Não") -> Não
A176: =IF(Principal!F82=Principal!$G$2/Principal!$G$1,"Sim","Não") -> Não
A177: =IF(Principal!F83=Principal!$G$2/Principal!$G$1,"Sim","Não") -> Não
A178: =IF(Principal!F84=Principal!$G$2/Principal!$G$1,"Sim","Não") -> Não
A179: =IF(Principal!F85=Principal!$G$2/Principal!$G$1,"Sim","Não") -> Não
A180: =IF(Principal!F86=Principal!$G$2/Principal!$G$1,"Sim","Não") -> Não
A181: =IF(Principal!F87=Principal!$G$2/Principal!$G$1,"Sim","Não") -> Não
A182: =IF(Principal!F88=Principal!$G$2/Principal!$G$1,"Sim","Não") -> Não
A183: =IF(Principal!F89=Principal!$G$2/Principal!$G$1,"Sim","Não") -> Não
A184: =IF(Principal!F90=Principal!$G$2/Principal!$G$1,"Sim","Não") -> Não
A185: =IF(Principal!F91=Principal!$G$2/Principal!$G$1,"Sim","Não") -> Não
A186: =IF(Principal!F92=Principal!$G$2/Principal!$G$1,"Sim","Não") -> Não
A187: =IF(Principal!F93=Principal!$G$2/Principal!$G$1,"Sim","Não") -> Não
A188: =IF(Principal!F94=Principal!$G$2/Principal!$G$1,"Sim","Não") -> Não
A189: =IF(Principal!F95=Principal!$G$2/Principal!$G$1,"Sim","Não") -> Não
A190: =IF(Principal!F96=Principal!$G$2/Principal!$G$1,"Sim","Não") -> Não
A191: =IF(Principal!F97=Principal!$G$2/Principal!$G$1,"Sim","Não") -> Não
A192: =IF(Principal!F98=Principal!$G$2/Principal!$G$1,"Sim","Não") -> Não
A193: =IF(Principal!F99=Principal!$G$2/Principal!$G$1,"Sim","Não") -> Não
A194: =IF(Principal!F100=Principal!$G$2/Principal!$G$1,"Sim","Não") -> Não
A195: =IF(Principal!F101=Principal!$G$2/Principal!$G$1,"Sim","Não") -> Não
A196: =IF(Principal!F102=Principal!$G$2/Principal!$G$1,"Sim","Não") -> Não

Sheet Eliminadas
B1: Excluídas as linhas com
B2: células amarelas
A5: # | B5: Espécie | C5: Valor | D5: 41 | E5: 58 | F5: 80 | G5: 85 | H5: 87 | I5: 95 | J5: 99 | K5: 41 | L5: 58 | M5: 80 | N5: 85 | O5: 87 | P5: 95 | Q5: 99
A6: 1 | B6: Andiroba | C6: 120
A7: 2 | B7: Angelim-Vermelho | C7: 120
A8: 3 | B8: Cumaru | C8: 120
A9: 4 | B9: Jatobá | C9: 120
A10: 5 | B10: Maparajuba | C10: 120
A11: 6 | B11: Massaranduba | C11: 120
A12: 7 | B12: Muiracatiara | C12: 120
A13: 8 | B13: Angelim | C13: 90
A14: 9 | B14: Angelim-pedra | C14: 90
A15: 10 | B15: Cumaru-do-brejo | C15: 90
A16: 11 | B16: Cumarurana | C16: 90
A17: 12 | B17: Cupiúba | C17: 90
A18: 13 | B18: Itaúba | C18: 90
A19: 14 | B19: Jutaí | C19: 90
A20: 15 | B20: Jutaí-pororoca | C20: 90
A21: 16 | B21: Louro | C21: 90
A22: 17 | B22: Louro-amarelo | C22: 90
A23: 18 | B23: Louro-aritú | C23: 90
A24: 19 | B24: Louro-canela | C24: 90
A25: 20 | B25: Louro-fofo | C25: 90
A26: 21 | B26: Louro-gamela | C26: 90
A27: 22 | B27: Louro-porco | C27: 90
A28: 23 | B28: Louro-preto | C28: 90
A29: 24 | B29: Marupá | C29: 90
A30: 25 | B30: Pequiá | C30: 90
A31: 26 | B31: Pequiarana | C31: 90
A32: 27 | B32: Preciosa | C32: 90
A33: 28 | B33: Quarubarana | C33: 90
A34: 29 | B34: Ripeiro | C34: 90
A35: 30 | B35: Sucupira-amarela | C35: 90
A36: 31 | B36: Sucupira-preta | C36: 90
A37: 32 | B37: Tauari-branco | C37: 90
A38: 33 | B38: Tauari-vermelho | C38: 90
A39: 34 | B39: Ucuúba | C39: 90
A40: 35 | B40: Ucuúba-branca | C40: 90
A41: 36 | B41: Violeta | C41: 90
A42: 37 | B42: Virola | C42: 90
A43: 38 | B43: Abiurana-ferro | C43: 50
A44: 39 | B44: Acariquara | C44: 50
A45: 40 | B45: Amapá | C45: 50
A46: 41 | B46: Amapá-amargoso | C46: 50 | D46: 1 | K46: -1
A47: 42 | B47: Amapá-doce | C47: 50
A48: 43 | B48: Angelim-rajado | C48: 50
A49: 44 | B49: Arurá-vermelho | C49: 50
A50: 45 | B50: Bacuri | C50: 50
A51: 46 | B51: Balatarana | C51: 50
A52: 47 | B52: Breu | C52: 50
A53: 48 | B53: Breu-branco | C53: 50
A54: 49 | B54: Breu-vermelho | C54: 50
A55: 50 | B55: Castanharana | C55: 50
A56: 51 | B56: Castanharana | C56: 50
A57: 52 | B57: Castanha-sapucaia | C57: 50
A58: 53 | B58: Coração-de-negro | C58: 50
A59: 54 | B59: Cubarana | C59: 50
A60: 55 | B60: Guajará | C60: 50
A61: 56 | B61: Guariúba | C61: 50
A62: 57 | B62: Ingarana | C62: 50
A63: 58 | B63: Jacareúba | C63: 50 | E63: 1 | L63: -1
A64: 59 | B64: Jarana | C64: 50
A65: 60 | B65: Macacaúba | C65: 50
A66: 61 | B66: Mata-mata-branco | C66: 50
A67: 62 | B67: Matamata-preto | C67: 50
A68: 63 | B68: Matamata-vermelho | C68: 50
A69: 64 | B69: Muirapiranga | C69: 50
A70: 65 | B70: Paracutaco | C70: 50
A71: 66 | B71: Seringa | C71: 50
A72: 67 | B72: Sucupira-vermelha | C72: 50
A73: 68 | B73: Tanibuca | C73: 50
A74: 69 | B74: Uchi | C74: 50
A75: 70 | B75: Uchi-coroa | C75: 50
A76: 71 | B76: Uchirana | C76: 50
A77: 72 | B77: Urucurana | C77: 50
A78: 73 | B78: Abacatearana | C78: 25
A79: 74 | B79: Abiu | C79: 25
A80: 75 | B80: Abiu-branco | C80: 25
A81: 76 | B81: Abiurana-Vermelha | C81: 25
A82: 77 | B82: Abiu-vermelho | C82: 25
A83: 78 | B83: Amarelinho | C83: 25
A84: 79 | B84: Angelim-fava | C84: 25
A85: 80 | B85: Arara-tucupi | C85: 25 | F85: 1 | M85: -1
A86: 81 | B86: Arura-branco | C86: 25
A87: 82 | B87: Balata-casca-grossa | C87: 25
A88: 83 | B88: Balatinha | C88: 25
A89: 84 | B89: Caju-açu | C89: 25
A90: 85 | B90: Cajuí | C90: 25 | G90: 1 | N90: -1
A91: 86 | B91: Caju-preto | C91: 25
A92: 87 | B92: Cajurana | C92: 25 | H92: 1 | O92: -1
A93: 88 | B93: Capitiú | C93: 25
A94: 89 | B94: Caramuri | C94: 25
A95: 90 | B95: Carapanaúba | C95: 25
A96: 91 | B96: Fava | C96: 25
A97: 92 | B97: Fava-amargosa | C97: 25
A98: 93 | B98: Fava-bengué | C98: 25
A99: 94 | B99: Fava-bolacha | C99: 25
A100: 95 | B100: Fava-vermelha | C100: 25 | I100: 1 | P100: -1
A101: 96 | B101: João-mole | C101: 25
A102: 97 | B102: Macucu | C102: 25
A103: 98 | B103: Macucu-casca-grossa | C103: 25
A104: 99 | B104: Munguba | C104: 25 | J104: 1 | Q104: -1
A105: 100 | B105: Parapará | C105: 25
A106: 101 | B106: Paricá | C106: 25
A107: 102 | B107: Pequiá-marfim | C107: 25
A108: 103 | B108: Tapuruzeiro | C108: 25
A109: 104 | B109: Timborana | C109: 25
A110: 1 | B110: Bin_Andiroba_x1 | C110: 120
A111: 2 | B111: Bin_Angelim-Vermelho_x2 | C111: 120
A112: 3 | B112: Bin_Cumaru_x3 | C112: 120
A113: 4 | B113: Bin_Jatobá_x4 | C113: 120
A114: 5 | B114: Bin_Maparajuba_x5 | C114: 120
A115: 6 | B115: Bin_Massaranduba_x6 | C115: 120
A116: 7 | B116: Bin_Muiracatiara_x7 | C116: 120
A117: 8 | B117: Bin_Angelim_x8 | C117: 90
A118: 9 | B118: Bin_Angelim-pedra_x9 | C118: 90
A119: 10 | B119: Bin_Cumaru-do-brejo_x10 | C119: 90
A120: 11 | B120: Bin_Cumarurana_x11 | C120: 90
A121: 12 | B121: Bin_Cupiúba_x12 | C121: 90
A122: 13 | B122: Bin_Itaúba_x13 | C122: 90
A123: 14 | B123: Bin_Jutaí_x14 | C123: 90
A124: 15 | B124: Bin_Jutaí-pororoca_x15 | C124: 90
A125: 16 | B125: Bin_Louro_x16 | C125: 90
A126: 17 | B126: Bin_Louro-amarelo_x17 | C126: 90
A127: 18 | B127: Bin_Louro-aritú_x18 | C127: 90
A128: 19 | B128: Bin_Louro-canela_x19 | C128: 90
A129: 20 | B129: Bin_Louro-fofo_x20 | C129: 90
A130: 21 | B130: Bin_Louro-gamela_x21 | C130: 90
A131: 22 | B131: Bin_Louro-porco_x22 | C131: 90
A132: 23 | B132: Bin_Louro-preto_x23 | C132: 90
A133: 24 | B133: Bin_Marupá_x24 | C133: 90
A134: 25 | B134: Bin_Pequiá_x25 | C134: 90
A135: 26 | B135: Bin_Pequiarana_x26 | C135: 90
A136: 27 | B136: Bin_Preciosa_x27 | C136: 90
A137: 28 | B137: Bin_Quarubarana_x28 | C137: 90
A138: 29 | B138: Bin_Ripeiro_x29 | C138: 90
A139: 30 | B139: Bin_Sucupira-amarela_x30 | C139: 90
A140: 31 | B140: Bin_Sucupira-preta_x31 | C140: 90
A141: 32 | B141: Bin_Tauari-branco_x32 | C141: 90
A142: 33 | B142: Bin_Tauari-vermelho_x33 | C142: 90
A143: 34 | B143: Bin_Ucuúba_x34 | C143: 90
A144: 35 | B144: Bin_Ucuúba-branca_x35 | C144: 90
A145: 36 | B145: Bin_Violeta_x36 | C145: 90
A146: 37 | B146: Bin_Virola_x37 | C146: 90
A147: 38 | B147: Bin_Abiurana-ferro_x38 | C147: 50
A148: 39 | B148: Bin_Acariquara_x39 | C148: 50
A149: 40 | B149: Bin_Amapá_x40 | C149: 50
A150: 41 | B150: Bin_Amapá-amargoso_x41 | C150: 50 | D150: -0.07372916667 | K150: =$D$217 -> 0
A151: 42 | B151: Bin_Amapá-doce_x42 | C151: 50
A152: 43 | B152: Bin_Angelim-rajado_x43 | C152: 50
A153: 44 | B153: Bin_Arurá-vermelho_x44 | C153: 50
A154: 45 | B154: Bin_Bacuri_x45 | C154: 50
A155: 46 | B155: Bin_Balatarana_x46 | C155: 50
A156: 47 | B156: Bin_Breu_x47 | C156: 50
A157: 48 | B157: Bin_Breu-branco_x48 | C157: 50
A158: 49 | B158: Bin_Breu-vermelho_x49 | C158: 50
A159: 50 | B159: Bin_Castanharana_x50 | C159: 50
A160: 51 | B160: Bin_Castanharana_x51 | C160: 50
A161: 52 | B161: Bin_Castanha-sapucaia_x52 | C161: 50
A162: 53 | B162: Bin_Coração-de-negro_x53 | C162: 50
A163: 54 | B163: Bin_Cubarana_x54 | C163: 50
A164: 55 | B164: Bin_Guajará_x55 | C164: 50
A165: 56 | B165: Bin_Guariúba_x56 | C165: 50
A166: 57 | B166: Bin_Ingarana_x57 | C166: 50
A167: 58 | B167: Bin_Jacareúba_x58 | C167: 50 | E167: -0.06173125 | L167: =$D$217 -> 0
A168: 59 | B168: Bin_Jarana_x59 | C168: 50
A169: 60 | B169: Bin_Macacaúba_x60 | C169: 50
A170: 61 | B170: Bin_Mata-mata-branco_x61 | C170: 50
A171: 62 | B171: Bin_Matamata-preto_x62 | C171: 50
A172: 63 | B172: Bin_Matamata-vermelho_x63 | C172: 50
A173: 64 | B173: Bin_Muirapiranga_x64 | C173: 50
A174: 65 | B174: Bin_Paracutaco_x65 | C174: 50
A175: 66 | B175: Bin_Seringa_x66 | C175: 50
A176: 67 | B176: Bin_Sucupira-vermelha_x67 | C176: 50
A177: 68 | B177: Bin_Tanibuca_x68 | C177: 50
A178: 69 | B178: Bin_Uchi_x69 | C178: 50
A179: 70 | B179: Bin_Uchi-coroa_x70 | C179: 50
A180: 71 | B180: Bin_Uchirana_x71 | C180: 50
A181: 72 | B181: Bin_Urucurana_x72 | C181: 50
A182: 73 | B182: Bin_Abacatearana _x73 | C182: 25
A183: 74 | B183: Bin_Abiu_x74 | C183: 25
A184: 75 | B184: Bin_Abiu-branco_x75 | C184: 25
A185: 76 | B185: Bin_Abiurana-Vermelha_x76 | C185: 25
A186: 77 | B186: Bin_Abiu-vermelho_x77 | C186: 25
A187: 78 | B187: Bin_Amarelinho_x78 | C187: 25
A188: 79 | B188: Bin_Angelim-fava_x79 | C188: 25
A189: 80 | B189: Bin_Arara-tucupi_x80 | C189: 25 | F189: -0.07883125 | M189: =$D$217 -> 0
A190: 81 | B190: Bin_Arura-branco_x81 | C190: 25
A191: 82 | B191: Bin_Balata-casca-grossa_x82 | C191: 25
A192: 83 | B192: Bin_Balatinha_x83 | C192: 25
A193: 84 | B193: Bin_Caju-açu_x84 | C193: 25
A194: 85 | B194: Bin_Cajuí_x85 | C194: 25 | G194: -0.08681458333 | N194: =$D$217 -> 0
A195: 86 | B195: Bin_Caju-preto_x86 | C195: 25
A196: 87 | B196: Bin_Cajurana_x87 | C196: 25 | H196: -0.05081666667 | O196: =$D$217 -> 0
A197: 88 | B197: Bin_Capitiú_x88 | C197: 25
A198: 89 | B198: Bin_Caramuri_x89 | C198: 25
A199: 90 | B199: Bin_Carapanaúba_x90 | C199: 25
A200: 91 | B200: Bin_Fava_x91 | C200: 25
A201: 92 | B201: Bin_Fava-amargosa_x92 | C201: 25
A202: 93 | B202: Bin_Fava-bengué_x93 | C202: 25
... 15 more rows

Sheet Plan1
A1: Indicador baseado na: | B1: Volume de corte máximo (m3/ha), V*: | C1: 30 | D1: Área da UPA (ha): | F1: ='UMF3'!B1/30 -> 620
A2: Carga da UPA | B2: Indicador A7 (Spp exploradas), S*: | C2: 15 | D2: Carga mínima (m3): | F2: 30
B4: Receita (R$/ha): | C4: =F203 -> 0 | D4: Espécies e volume explorados: | F4: =I201 -> 0
B5: Espécie | C5: % Explorado da Sp | D5: % do Total | E5: Volume (m3) | F5: Valor
B6: Abiurana-ferro | C6: -- | D6: -- | E6: 8.837768052e-18 | F6: 50
B7: Acariquara | C7: -- | D7: -- | E7: 0 | F7: 50
B8: Amapá | C8: -- | D8: -- | E8: 0 | F8: 50
B9: Amapá-doce | C9: -- | D9: -- | E9: 0 | F9: 50
B10: Angelim-rajado | C10: -- | D10: -- | E10: -2.655185309e-16 | F10: 50
B11: Arurá-vermelho | C11: -- | D11: -- | E11: 4.325423495e-16 | F11: 50 | I11: 0.2736 | J11: 0.2736
B12: Bacuri | C12: -- | D12: -- | E12: 3.577883596e-16 | F12: 50 | I12: 0.2596 | J12: 0.2596
B13: Balatarana | C13: -- | D13: -- | E13: -7.336206653e-17 | F13: 50 | I13: 0.1036 | J13: 0.1036
B14: Breu | C14: -- | D14: -- | E14: 0 | F14: 50 | I14: 0.0702 | J14: 0.0702
B15: Breu-branco | C15: -- | D15: -- | E15: 1.110223025e-16 | F15: 50
B16: Breu-vermelho | C16: -- | D16: -- | E16: 1.930362608e-16 | F16: 50
B17: Castanharana | C17: -- | D17: -- | E17: 4.14933089e-16 | F17: 50
B18: Castanharana | C18: -- | D18: -- | E18: -5.018172015e-16 | F18: 50
B19: Castanha-sapucaia | C19: -- | D19: -- | E19: 0 | F19: 50
B20: Coração-de-negro | C20: -- | D20: -- | E20: 0 | F20: 50
B21: Guajará | C21: -- | D21: -- | E21: 0 | F21: 50
B22: Guariúba | C22: -- | D22: -- | E22: 0 | F22: 50
B23: Ingarana | C23: -- | D23: -- | E23: 0 | F23: 50
B24: Macacaúba | C24: -- | D24: -- | E24: 5.505902179e-16 | F24: 50
B25: Cumaru | C25: 1 | D25: 0.2736205556 | E25: 8.208616667 | F25: 120
B26: Massaranduba | C26: 1 | D26: 0.259563125 | E26: 7.78689375 | F26: 120
B27: Maparajuba | C27: 1 | D27: 0.1036382639 | E27: 3.109147917 | F27: 120
B28: Jatobá | C28: 1 | D28: 0.07019152778 | E28: 2.105745833 | F28: 120
B29: Pequiarana | C29: 1 | D29: 0.03836083333 | E29: 1.150825 | F29: 90
B30: Sucupira-amarela | C30: 1 | D30: 0.03507048611 | E30: 1.052114583 | F30: 90
B31: Muiracatiara | C31: 1 | D31: 0.03093479167 | E31: 0.92804375 | F31: 120
B32: Angelim-Vermelho | C32: 1 | D32: 0.02800375 | E32: 0.8401125 | F32: 120
B33: Ripeiro | C33: 1 | D33: 0.02727055556 | E33: 0.8181166667 | F33: 90
B34: Marupá | C34: 1 | D34: 0.024969375 | E34: 0.74908125 | F34: 90
B35: Itaúba | C35: 0.1186889051 | D35: 0.02409214158 | E35: 0.7227642473 | F35: 90
B36: Louro-aritú | C36: 1 | D36: 0.02250618056 | E36: 0.6751854167 | F36: 90
B37: Cumarurana | C37: 1 | D37: 0.01296805556 | E37: 0.3890416667 | F37: 90
B38: Louro-amarelo | C38: 1 | D38: 0.006378680556 | E38: 0.1913604167 | F38: 90
B39: Andiroba | C39: 1 | D39: 0.002109097222 | E39: 0.06327291667 | F39: 120
B40: Sucupira-preta | C40: 0.4107127578 | D40: 0.001612903226 | E40: 0.04838709677 | F40: 90
B41: Tauari-branco | C41: 0.1553617609 | D41: 0.001612903226 | E41: 0.04838709677 | F41: 90
B42: Louro-canela | C42: 0.1355998088 | D42: 0.001612903226 | E42: 0.04838709677 | F42: 90
B43: Louro | C43: 0.5752806691 | D43: 0.001612903226 | E43: 0.04838709677 | F43: 90
B44: Preciosa | C44: 0.3080754271 | D44: 0.001612903226 | E44: 0.04838709677 | F44: 90
B45: Quarubarana | C45: 0.9223544121 | D45: 0.001612903226 | E45: 0.04838709677 | F45: 90
B46: Louro-gamela | C46: 0.2092848649 | D46: 0.001612903226 | E46: 0.04838709677 | F46: 90
B47: Jutaí-pororoca | C47: 0.04437690389 | D47: 0.001612903226 | E47: 0.04838709677 | F47: 90
B48: Louro-preto | C48: 0.02285898827 | D48: 0.001612903226 | E48: 0.04838709677 | F48: 90
B49: Angelim-pedra | C49: 0.01095642699 | D49: 0.001612903226 | E49: 0.04838709677 | F49: 90
B50: Louro-fofo | C50: 0.5369135524 | D50: 0.001612903226 | E50: 0.04838709677 | F50: 90
B51: Tauari-vermelho | C51: 0.05254433921 | D51: 0.001612903226 | E51: 0.04838709677 | F51: 90
B52: Ucuúba | C52: 0.1836409574 | D52: 0.001612903226 | E52: 0.04838709677 | F52: 90
B53: Ucuúba-branca | C53: 0.3307953975 | D53: 0.001612903226 | E53: 0.04838709677 | F53: 90
B54: Violeta | C54: 0.5369135524 | D54: 0.001612903226 | E54: 0.04838709677 | F54: 90
B55: Virola | C55: 0.3820788059 | D55: 0.001612903226 | E55: 0.04838709677 | F55: 90
B56: Cumaru-do-brejo | C56: 0.1648880891 | D56: 0.001612903226 | E56: 0.04838709677 | F56: 90
B57: Louro-porco | C57: 0.7555319102 | D57: 0.001612903226 | E57: 0.04838709677 | F57: 90
B58: Cupiúba | C58: 0.009090071932 | D58: 0.001612903226 | E58: 0.04838709677 | F58: 90
B59: Angelim | C59: 0.4130868199 | D59: 0.001612903226 | E59: 0.04838709677 | F59: 90
B60: Jutaí | C60: 0.190221103 | D60: 0.001612903226 | E60: 0.04838709677 | F60: 90
B61: Pequiá | C61: 0.01579044777 | D61: 0.001612903226 | E61: 0.04838709677 | F61: 90
B62: Cubarana | C62: 0.2717835455 | D62: 0.001612903226 | E62: 0.04838709677 | F62: 50
B63: Mata-mata-branco | C63: 0.3172577649 | D63: 0.001612903226 | E63: 0.04838709677 | F63: 50
B64: Jarana | C64: 0.2165273524 | D64: 0.001612903226 | E64: 0.04838709677 | F64: 50

Sheet Plan2
B1: Volume de corte máximo (m3/ha), V*: | C1: 30 | D1: Área da UPA (ha): | E1: 515.3576667
B2: Indicador A7 (Spp exploradas), S*: | C2: 40 | D2: Carga mínima (m3): | E2: 30
B4: Receita (R$/ha): | C4: 3381.94108 | D4: Espécies e volume explorados: | E4: 40 spp | F4: 30 m3
B5: Espécie | C5: % Explorado da Sp | D5: % do Total | E5: Volume (m3) | F5: Valor
B6: Cumaru | C6: 1 | D6: 0.2736205556 | E6: 8.208616667 | F6: 120
B7: Massaranduba | C7: 1 | D7: 0.259563125 | E7: 7.78689375 | F7: 120
B8: Maparajuba | C8: 1 | D8: 0.1036382639 | E8: 3.109147917 | F8: 120
B9: Louro-preto | C9: 1 | D9: 0.07055881944 | E9: 2.116764583 | F9: 90
B10: Jatobá | C10: 1 | D10: 0.07019152778 | E10: 2.105745833 | F10: 120
B11: Pequiarana | C11: 1 | D11: 0.03836083333 | E11: 1.150825 | F11: 90
B12: Jutaí-pororoca | C12: 1 | D12: 0.03634555556 | E12: 1.090366667 | F12: 90
B13: Muiracatiara | C13: 1 | D13: 0.03093479167 | E13: 0.92804375 | F13: 120
B14: Angelim-Vermelho | C14: 1 | D14: 0.02800375 | E14: 0.8401125 | F14: 120
B15: Louro-aritú | C15: 1 | D15: 0.02250618056 | E15: 0.6751854167 | F15: 90
B16: Cumaru-do-brejo | C16: 1 | D16: 0.009781805556 | E16: 0.2934541667 | F16: 90
B17: Andiroba | C17: 1 | D17: 0.002109097222 | E17: 0.06327291667 | F17: 120
B18: Angelim-pedra | C18: 0.01355129334 | D18: 0.001994895304 | E18: 0.05984685911 | F18: 90
B19: Abiurana-ferro | C19: 0.1436941551 | D19: 0.001940399968 | E19: 0.05821199905 | F19: 50
B20: Marupá | C20: 0.07771119494 | D20: 0.001940399968 | E20: 0.05821199905 | F20: 90
B21: Cupiúba | C21: 0.01093579268 | D21: 0.001940399968 | E21: 0.05821199905 | F21: 90
B22: Jarana | C22: 0.2604927939 | D22: 0.001940399968 | E22: 0.05821199905 | F22: 50
B23: Angelim | C23: 0.4969632644 | D23: 0.001940399968 | E23: 0.05821199905 | F23: 90
B24: Sucupira-amarela | C24: 0.05532857349 | D24: 0.001940399968 | E24: 0.05821199905 | F24: 90
B25: Sucupira-preta | C25: 0.4941071537 | D25: 0.001940399968 | E25: 0.05821199905 | F25: 90
B26: Tauari-branco | C26: 0.1869076527 | D26: 0.001940399968 | E26: 0.05821199905 | F26: 90
B27: Tauari-vermelho | C27: 0.06321336116 | D27: 0.001940399968 | E27: 0.05821199905 | F27: 90
B28: Ucuúba | C28: 0.2209288829 | D28: 0.001940399968 | E28: 0.05821199905 | F28: 90
B29: Ucuúba-branca | C29: 0.3979627349 | D29: 0.001940399968 | E29: 0.05821199905 | F29: 90
B30: Violeta | C30: 0.6459327648 | D30: 0.001940399968 | E30: 0.05821199905 | F30: 90
B31: Virola | C31: 0.4596591357 | D31: 0.001940399968 | E31: 0.05821199905 | F31: 90
B32: Jutaí | C32: 0.2288451137 | D32: 0.001940399968 | E32: 0.05821199905 | F32: 90
B33: Louro-amarelo | C33: 0.3042008377 | D33: 0.001940399968 | E33: 0.05821199905 | F33: 90
B34: Louro | C34: 0.692090247 | D34: 0.001940399968 | E34: 0.05821199905 | F34: 90
B35: Louro-porco | C35: 0.9089411386 | D35: 0.001940399968 | E35: 0.05821199905 | F35: 90
B36: Louro-fofo | C36: 0.6459327648 | D36: 0.001940399968 | E36: 0.05821199905 | F36: 90
B37: Ripeiro | C37: 0.07115366477 | D37: 0.001940399968 | E37: 0.05821199905 | F37: 90
B38: Itaúba | C38: 0.009559297454 | D38: 0.001940399968 | E38: 0.05821199905 | F38: 90
B39: Pequiá | C39: 0.0189966663 | D39: 0.001940399968 | E39: 0.05821199905 | F39: 90
B40: Louro-gamela | C40: 0.251779734 | D40: 0.001940399968 | E40: 0.05821199905 | F40: 90
B41: Cumarurana | C41: 0.1496292146 | D41: 0.001940399968 | E41: 0.05821199905 | F41: 90
B42: Cubarana | C42: 0.3269686455 | D42: 0.001940399968 | E42: 0.05821199905 | F42: 50
B43: Louro-canela | C43: 0.1631330761 | D43: 0.001940399968 | E43: 0.05821199905 | F43: 90
B44: Preciosa | C44: 0.3706295204 | D44: 0.001940399968 | E44: 0.05821199905 | F44: 90
B45: Seringa | C45: 0.1348866017 | D45: 0.001940399968 | E45: 0.05821199905 | F45: 50
B46: Matamata-vermelho | C46: -- | D46: -- | E46: 7.967846162e-15 | F46: 50
B47: Paracutaco | C47: -- | D47: -- | E47: 6.056970603e-16 | F47: 50
B48: Arurá-vermelho | C48: -- | D48: -- | E48: 3.050708708e-16 | F48: 50
B49: Guajará | C49: -- | D49: -- | E49: 1.682089995e-16 | F49: 50
B50: Amapá | C50: -- | D50: -- | E50: 2.972923898e-17 | F50: 50
B51: Bacuri | C51: -- | D51: -- | E51: 2.494175716e-17 | F51: 50
B52: Angelim-rajado | C52: -- | D52: -- | E52: 1.973348996e-32 | F52: 50
B53: Quarubarana | C53: -- | D53: -- | E53: 0 | F53: 90
B54: Breu | C54: -- | D54: -- | E54: 0 | F54: 50
B55: Breu-branco | C55: -- | D55: -- | E55: 0 | F55: 50
B56: Breu-vermelho | C56: -- | D56: -- | E56: 0 | F56: 50
B57: Castanharana | C57: -- | D57: -- | E57: 0 | F57: 50
B58: Castanha-sapucaia | C58: -- | D58: -- | E58: 0 | F58: 50
B59: Coração-de-negro | C59: -- | D59: -- | E59: 0 | F59: 50
B60: Guariúba | C60: -- | D60: -- | E60: 0 | F60: 50
B61: Ingarana | C61: -- | D61: -- | E61: 0 | F61: 50
B62: Macacaúba | C62: -- | D62: -- | E62: 0 | F62: 50
B63: Mata-mata-branco | C63: -- | D63: -- | E63: 0 | F63: 50
B64: Matamata-preto | C64: -- | D64: -- | E64: 0 | F64: 50
B65: Muirapiranga | C65: -- | D65: -- | E65: 0 | F65: 50
B66: Acariquara | C66: -- | D66: -- | E66: -1.045798196e-17 | F66: 50
B67: Amapá-doce | C67: -- | D67: -- | E67: -1.444986254e-17 | F67: 50
B68: Castanharana | C68: -- | D68: -- | E68: -1.01966779e-16 | F68: 50
B69: Balatarana | C69: -- | D69: -- | E69: -2.192159268e-16 | F69: 50
